Workbook

Sheet Suivi
A1: Suivi | B1: Genre | C1: Titre | D1: Source | E1: Vérif. | F1: Données MAJ | G1: Données à compléter
A2: Stocks | C2: Stocks | D2: VSA | F2: 16/04/201
A3: Stocks durées | C3: Stocks durées | D3: VSA | F3: 16/04/202
A4: TX admission | C4: TX admission | D4: VSA
A5: Stocks pays | C5: Stocks pays | D5: VSA | F5: 16/04/202
A6: Top 10 stocks | C6: Top 10 stocks | D6: VSA | F6: 16/04/203
A7: T I2-16 Stocks par dpts-rg | C7: T I2-16 Stocks par dpts-rg | D7: VSA | F7: 16/04/204
A8: part Stocks régions | C8: part Stocks régions | D8: VSA | F8: 16/04/205
A9: 1er titre et graphique | C9: 1er titre et graphique | D9: VSA | F9: fait le 05/05/2018
A10: Europe | C10: Europe | D10: VSA
A11: variables N1 et N2 | C11: variables N1 et N2 | D11: VSA
A12: 1er titre PT | C12: 1er titre PT | D12: VSA
A13: Graph 1er titre | C13: Graph 1er titre | D13: VSA
A14: 1er titre UE | C14: 1er titre UE | D14: VSA
A15: 1er titre par motifs et top NAT | C15: 1er titre par motifs et top NAT | D15: VSA
A16: familles de français | C16: familles de français | D16: VSA
A17: G étu et sala | C17: G étu et sala | D17: VSA
A18: mariages transcrits
A19: 1ER TITRES PAR TYPE | C19: 1ER TITRES PAR TYPE | D19: VSA
A20: CST TTS PAYS METRO | C20: CST TTS PAYS METRO | D20: VSA
A21: VLS TS | C21: VLS TS | D21: VSA
A22: CR | C22: CR attribuées pour la 1ere fois | D22: VSA
A23: RETRAITES | C23: cartes de retraité | D23: VSA
A24: CRA | C24: CRA | D24: VSA
A25: 1er titre UE détaillés | C25: 1er titre UE détaillés | D25: VSA
A26: AES | C26: AES - régularisations | D26: VSA
A27: IRREGULIERS | C27: Entrée irrégulière | D27: VSA
A28: OCDE | C28: OCDE | D28: VSA
A29: RP 2012 | C29: RP 2012 | D29: VSA
A30: Mariages mixtes | D30: SDANF

Sheet Nomenclatures N1 et N2
A1: I-2-2 | B1: Stocks durées | C1: VSA
A3: A. Economique | B3: 1 - Compétences et talents
B4: 2 - Actif non salarié
B5: 3 - Scientifique
B6: 4 - Artiste
B7: 5 - Salarié*
B8: 6 - Saisonnier ou temporaire
A9: B. Familial | B9: 1 - Famille de Français
B10: 2 - Membre de famille**
B11: 3 - Liens personnels et familiaux***
A12: C. Etudiants | B12: Etudiant et stagiaire
A13: D. Divers | B13: 1 - Visiteur
B14: 2 - Etranger entré mineur
B15: 3 - Rente accident du travail
B16: 4 - Ancien combattant
B17: 5 - Retraité ou pensionné
B18: 6 - Motifs divers
A19: E. Humanitaire | B19: 1 - Réfugié et apatride
B20: 2 - Asile territorial/protection subsidiaire
B21: 3 - Etranger malade
B22: 4 - Victime de la traite des êtres humains
B23: 5 - Victime de violences conjugales
A25: * comprend les admissions exceptionnelles au séjour au titre du travail
A26: ** Regroupement familial.
A27: *** comprend l'ancienne rubrique "Divers - Admission exceptionnelle au séjour"

Sheet Stocks
B1: Les stocks de titres valides au 31 décembre
C5: 2007 | D5: 2008 | E5: 2009 | F5: 2010 | G5: 2011 | H5: 2012 | I5: 2013 | J5: 2014 | K5: 2015 | L5: 2016 | M5: 2017
B6: France métropolitaine | C6: 2282628 | D6: 2373120 | E6: 2350882 | F6: 2377377 | G6: 2454195 | H6: 2523424 | I6: 2606724 | J6: 2664037 | K6: 2734413 | L6: 2826343 | M6: 2965634
B7: DOM | C7: 57200 | D7: 57402 | E7: 59299 | F7: 62977 | G7: 65177 | H7: 67989 | I7: 87730 | J7: 93648 | K7: 102543 | L7: 109556 | M7: 111712
B8: COM | C8: 11027 | D8: 13213 | E8: 13903 | F8: 15131 | G8: 15616 | H8: 17443 | I8: 6218 | J8: 6229 | K8: 6282 | L8: 6182 | M8: 5650
B9: Total | C9: 2350855 | D9: 2443735 | E9: 2424084 | F9: 2455485 | G9: 2534988 | H9: 2608856 | I9: 2700672 | J9: 2763914 | K9: 2843238 | L9: 2942081 | M9: 3082996
B11: Typologie des titres (métropole) par types de documents
C13: 2007 | D13: 2008 | E13: 2009 | F13: 2010 | G13: 2011 | H13: 2012 | I13: 2013 | J13: 2014 | K13: 2015 | L13: 2016 | M13: 2017
B14: Cartes de résident et RLD | C14: 1177478 | D14: 1203429 | E14: 1199206 | F14: 1204985 | G14: 1230747 | H14: 1270490 | I14: 1312109 | J14: 1348530 | K14: 1378570 | L14: 1412222 | M14: 1475279
B15: Cartes de résident algérien | C15: 558062 | D15: 570039 | E15: 563737 | F15: 560169 | G15: 542905 | H15: 553801 | I15: 561543 | J15: 556994 | K15: 560024 | L15: 564936 | M15: 579614
B16: Carte de séjour pluriannuelle | L16: 30202 | M16: 303613
B17: Carte de séjour temporaire | C17: 390555 | D17: 433175 | E17: 410541 | F17: 413105 | G17: 421260 | H17: 450140 | I17: 463695 | J17: 487523 | K17: 500035 | L17: 470852 | M17: 246110
B18: Titres communautaires | C18: 12461 | D18: 13883 | E18: 14780 | F18: 15934 | G18: 17236 | H18: 19233 | I18: 21418 | J18: 24485 | K18: 28067 | L18: 31350 | M18: 35249
B19: Retraite | C19: 3798 | D19: 4132 | E19: 4379 | F19: 4415 | G19: 4344 | H19: 4216 | I19: 4260 | J19: 4353 | K19: 4543 | L19: 4770 | M19: 4944
B20: Compétences et talents | C20: 5 | D20: 383 | E20: 1064 | F20: 1590 | G20: 1674 | H20: 1724 | I20: 1713 | J20: 1741 | K20: 1582 | L20: 1527 | M20: 851
B21: VLS-TS | F21: 17021 | G21: 64860 | H21: 62405 | I21: 64568 | J21: 64418 | K21: 64016 | L21: 60867 | M21: 68324
B22: documents provisoires | C22: 140269 | D22: 148079 | E22: 157175 | F22: 160158 | G22: 171169 | H22: 161415 | I22: 177418 | J22: 175993 | K22: 197576 | L22: 249617 | M22: 251650
B23: Total | C23: 2282628 | D23: 2373120 | E23: 2350882 | F23: 2377377 | G23: 2454195 | H23: 2523424 | I23: 2606724 | J23: 2664037 | K23: 2734413 | L23: 2826343 | M23: 2965634
B24: Source : AGDREF / DSED
C27: 2016 | L27: 2017
B30: Famille de motifs | C30: Documents < 10 ans | H30: Documents > 10 ans | I30: TOTAL | K30: Famille de motifs | L30: Documents < 10 ans | Q30: Documents > 10 ans | R30: TOTAL
C31: CEE/CRA/CST/ CSP/EEE/CCT/UE | D31: Récépissés de carte de séjour | E31: APS/ convocation/ | F31: VLS-TS | G31: Total | H31: CEE/CRA/CST/ EEE/CCT | L31: CEE/CRA/CST/ CSP/EEE/CCT/UE | M31: Récépissés de carte de séjour | N31: APS/ convocation/ | O31: VLS-TS | P31: Total | Q31: CEE/CRA/CST/ EEE/CCT
E32: ADA/ | N32: ADA/
B33: A. Economique | C33: 99548 | D33: 18138 | E33: 12011 | F33: 5221 | G33: 134918 | H33: 197 | I33: 135115 | K33: A. Economique | L33: 116386 | M33: 17092 | N33: 12618 | O33: 6004 | P33: 152100 | Q33: 196 | R33: 152296
B34: B. Familial | C34: 284554 | D34: 65898 | E34: 3845 | F34: 16416 | G34: 370713 | H34: 744823 | I34: 1115536 | K34: B. Familial | L34: 308689 | M34: 53540 | N34: 3286 | O34: 16254 | P34: 381769 | Q34: 779883 | R34: 1161652
B35: C. Etudiants | C35: 110292 | D35: 23520 | E35: 89 | F35: 35267 | G35: 169168 | H35: 451 | I35: 169619 | K35: C. Etudiants | L35: 118517 | M35: 25239 | N35: 132 | O35: 42521 | P35: 186409 | Q35: 498 | R35: 186907
B36: D. Divers | C36: 37961 | D36: 15604 | E36: 1806 | F36: 3963 | G36: 59334 | H36: 106093 | I36: 165427 | K36: D. Divers | L36: 43248 | M36: 13703 | N36: 1474 | O36: 3545 | P36: 61970 | Q36: 160878 | R36: 222848
B37: E. Humanitaire | C37: 41097 | D37: 38273 | E37: 64884 | G37: 144254 | H37: 152627 | I37: 296881 | K37: E. Humanitaire | L37: 42561 | M37: 35005 | N37: 85840 | P37: 163406 | Q37: 171545 | R37: 334951
B38: Renouvellement de plein droit | D38: 5541 | E38: 8 | G38: 5549 | H38: 938216 | I38: 943765 | K38: Renouvellement de plein droit | M38: 3716 | N38: 5 | P38: 3721 | Q38: 903259 | R38: 906980
B39: Total | C39: 573452 | D39: 166974 | E39: 82643 | F39: 60867 | G39: 883936 | H39: 1942407 | I39: 2826343 | K39: Total | L39: 629401 | M39: 148295 | N39: 103355 | O39: 68324 | P39: 949375 | Q39: 2016259 | R39: 2965634
K42: metro/pays-tiers

Sheet Stocks durées
A1: I-2-13bis | B1: stocks durées
A3: Selon la durée | B3: 2007 | C3: 2008 | D3: 2009 | E3: 2010 | F3: 2011 | G3: 2012 | H3: 2013 | I3: 2014 | J3: 2015 | K3: 2016 | L3: 2017 | N3: répartition 2015 | O3: répartition 2016 | P3: répartition 2017
A4: Récépissés, autorisations provisoires de séjour et attestation de demande d'asile | B4: 140269 | C4: 148079 | D4: 157175 | E4: 160158 | F4: 171169 | G4: 161415 | H4: 177418 | I4: 175993 | J4: 197576 | K4: 249617 | L4: 251650 | N4: 0.07225536157 | O4: 0.08831801377 | P4: 0.08485538
A5: Titres durée validité < ou = 1 an | B5: 435857 | C5: 473833 | D5: 444538 | E5: 457987 | F5: 510241 | G5: 535852 | H5: 541235 | I5: 556083 | J5: 563056 | K5: 531158 | L5: 347344 | N5: 0.2059147612 | O5: 0.1879311888 | P5: 0.1171230165
A6: Titres durée validité > 1 an | B6: 1706502 | C6: 1751208 | D6: 1749169 | E6: 1759232 | F6: 1772785 | G6: 1826157 | H6: 1888071 | I6: 1931961 | J6: 1973781 | K6: 2045568 | L6: 2366640 | N6: 0.7218298772 | O6: 0.7237507974 | P6: 0.7980216035
A7: Total | B7: 2282628 | C7: 2373120 | D7: 2350882 | E7: 2377377 | F7: 2454195 | G7: 2523424 | H7: 2606724 | I7: 2664037 | J7: 2734413 | K7: 2826343 | L7: 2965634 | N7: 1 | O7: 1 | P7: 1
A9: Source : DSED

Sheet Stocks pays
A1: I-2-123 | B1: Stocks pays
N2: évolution
B3: 2007 | C3: 2008 | D3: 2009 | E3: 2010 | F3: 2011 | G3: 2012 | H3: 2013 | I3: 2014 | J3: 2015 | K3: 2016 | L3: 2017 | N3: 2016-2017
A4: Total pays tiers | B4: 2282628 | C4: 2373120 | D4: 2350882 | E4: 2377377 | F4: 2454195 | G4: 2523424 | H4: 2606724 | I4: 2664037 | J4: 2734413 | K4: 2826343 | L4: 2965634 | N4: 0.04928311956
A5: Total Union Européenne | B5: 719996 | C5: 631993 | D5: 557986 | E5: 489056 | F5: 422025 | G5: 358562 | H5: 308226 | I5: 295559 | J5: 283459 | K5: 272821 | L5: 260125 | N5: -0.04653600713
A6: Total général | B6: 3002624 | C6: 3005113 | D6: 2908868 | E6: 2866433 | F6: 2876220 | G6: 2881986 | H6: 2914950 | I6: 2959596 | J6: 3017872 | K6: 3099164 | L6: 3225759 | N6: 0.04084811259
A8: Source : DSED
A13: Total Union Européenne | B13: 2007 | C13: 2008 | D13: 2009 | E13: 2010 | F13: 2011 | G13: 2012 | H13: 2013 | I13: 2014 | J13: 2015 | K13: 2016 | L13: 2017
A14: dont les Nouveaux entrants | B14: 58094 | C14: 59628 | D14: 60388 | E14: 63672 | F14: 67907 | G14: 73020 | H14: 77682 | I14: 72153 | J14: 68258 | K14: 64817 | L14: 58670
A15: dont Nationalités non soumises à titre de séjour | B15: 661902 | C15: 572365 | D15: 497598 | E15: 425384 | F15: 354118 | G15: 285542 | H15: 230544 | I15: 223406 | J15: 215201 | K15: 208004 | L15: 201455
A16: Total Union Européenne | B16: 719996 | C16: 631993 | D16: 557986 | E16: 489056 | F16: 422025 | G16: 358562 | H16: 308226 | I16: 295559 | J16: 283459 | K16: 272821 | L16: 260125

Sheet Top 10 stocks
A1: I-2-14 | B1: TOP 10
N3: Etrangers majeurs (recensement INSEE) en 2014 * | O3: Attention population de 15 ans ou plus (pas 18 ans)
B4: 2007 | C4: 2008 | D4: 2009 | E4: 2010 | F4: 2011 | G4: 2012 | H4: 2013 | I4: 2014 | J4: 2015 | K4: 2016 | L4: 2017
A5: Algérie | B5: 576807 | C5: 587880 | D5: 584350 | E5: 578109 | F5: 562545 | G5: 571469 | H5: 579607 | I5: 576384 | J5: 581539 | K5: 589134 | L5: 603866 | N5: 417949
A6: Maroc | B6: 465713 | C6: 476699 | D6: 465923 | E6: 463157 | F6: 470568 | G6: 476267 | H6: 483817 | I6: 490411 | J6: 495020 | K6: 498980 | L6: 510201 | N6: 377460
A7: Tunisie | B7: 172461 | C7: 176888 | D7: 174836 | E7: 177184 | F7: 185098 | G7: 190878 | H7: 197401 | I7: 203729 | J7: 208713 | K7: 212750 | L7: 221304 | N7: 141999
A8: Turquie | B8: 188051 | C8: 192981 | D8: 191647 | E8: 191041 | F8: 193244 | G8: 196028 | H8: 199550 | I8: 201375 | J8: 202219 | K8: 203474 | L8: 205647 | N8: 169083
A9: Chine (Hong-Kong inclus) | B9: 65686 | C9: 73126 | D9: 72476 | E9: 77412 | F9: 88207 | G9: 92987 | H9: 98245 | I9: 101539 | J9: 103933 | K9: 106368 | L9: 111750 | N9: 79504
A10: Mali | B10: 48554 | C10: 54777 | D10: 57808 | E10: 61322 | F10: 64806 | G10: 67532 | H10: 71472 | I10: 74375 | J10: 76453 | K10: 79093 | L10: 82250 | N10: 51036
A11: Sénégal | B11: 52366 | C11: 54854 | D11: 54409 | E11: 55539 | F11: 59049 | G11: 61120 | H11: 63586 | I11: 65717 | J11: 67128 | K11: 70242 | L11: 75933 | N11: 49416
A12: Congo, République démocratique du | B12: 41182 | C12: 44099 | D12: 45219 | E12: 47235 | F12: 50238 | G12: 54241 | H12: 58058 | I12: 61688 | J12: 63860 | K12: 66143 | L12: 69261 | N12: 34784
A13: Côte d'Ivoire | B13: 35167 | C13: 37749 | D13: 38137 | E13: 38803 | F13: 42064 | G13: 44107 | H13: 46081 | I13: 48736 | J13: 51430 | K13: 55289 | L13: 61951 | N13: 41271
A14: Cameroun | B14: 35888 | C14: 38892 | D14: 39654 | E14: 40990 | F14: 43318 | G14: 45223 | H14: 47007 | I14: 48707 | J14: 50066 | K14: 51466 | L14: 53628 | N14: 39461
B15: 0.7368151972 | C15: 0.7323460255 | D15: 0.7335370299 | E15: 0.7280258874 | F15: 0.7167877858 | G15: 0.7132578592 | H15: 0.7077174262 | I15: 0.7029410628 | J15: 0.6949795075 | K15: 0.6839010693 | L15: 0.6729727944
A16: Total | B16: 2282628 | C16: 2373120 | D16: 2350882 | E16: 2377377 | F16: 2454195 | G16: 2523424 | H16: 2606724 | I16: 2664037 | J16: 2734413 | K16: 2826343 | L16: 2965634 | N16: 3404638
A18: * Source : Insee, recensement 2013 exploitation complémentaire (étrangers hors EEE de 18 ans ou plus / France métropolitaine).

Sheet T I2-16 Stocks par dpts-rg
A1: Tableau Stock de titres et autorisations provisoires de séjour en cours de validité par département
O3: Population aux recensements
A4: DEPARTEMENTS | B4: 2007 | C4: 2008 | D4: 2009 | E4: 2010 | F4: 2011 | G4: 2012 | H4: 2013 | I4: 2014 | J4: 2015 | K4: 2016 | L4: 2017 | M4: % de la population du département | P4: 2014
A5: 01 - Ain | B5: 25441 | C5: 23754 | D5: 22384 | E5: 21134 | F5: 20672 | G5: 19949 | H5: 19679 | I5: 19622 | J5: 20197 | K5: 20691 | L5: 21661 | M5: 0.0345952179 | O5: Ain | P5: 626127
A6: 02 - Aisne | B6: 11627 | C6: 11444 | D6: 11120 | E6: 11112 | F6: 11481 | G6: 11602 | H6: 11477 | I6: 11386 | J6: 11380 | K6: 11635 | L6: 11993 | M6: 0.02221818768 | O6: Aisne | P6: 539783
A7: 03 - Allier | B7: 6849 | C7: 6720 | D7: 6441 | E7: 6301 | F7: 6367 | G7: 6320 | H7: 6287 | I7: 6406 | J7: 6618 | K7: 7005 | L7: 7515 | M7: 0.02190566137 | O7: Allier | P7: 343062
A8: 04 - Alpes-de-Haute-Provence | B8: 4970 | C8: 4755 | D8: 4614 | E8: 4434 | F8: 4285 | G8: 4015 | H8: 3981 | I8: 4026 | J8: 4052 | K8: 4375 | L8: 4474 | M8: 0.02768769958 | O8: Alpes-de-Haute-Provence | P8: 161588
A9: 05 - Hautes-Alpes | B9: 3534 | C9: 3530 | D9: 3495 | E9: 3457 | F9: 3433 | G9: 3383 | H9: 3406 | I9: 3521 | J9: 3614 | K9: 3634 | L9: 3829 | M9: 0.0273728759 | O9: Hautes-Alpes | P9: 139883
A10: 06 - Alpes-Maritimes | B10: 92326 | C10: 88298 | D10: 83406 | E10: 78731 | F10: 77841 | G10: 76566 | H10: 77147 | I10: 77942 | J10: 80232 | K10: 82300 | L10: 84393 | M10: 0.07790276485 | O10: Alpes-Maritimes | P10: 1083312
A11: 07 - Ardèche | B11: 7550 | C11: 7299 | D11: 6994 | E11: 6722 | F11: 6618 | G11: 6500 | H11: 6427 | I11: 6477 | J11: 6537 | K11: 6731 | L11: 7087 | M11: 0.02198330547 | O11: Ardèche | P11: 322381
A12: 08 - Ardennes | B12: 9057 | C12: 8407 | D12: 7928 | E12: 7567 | F12: 7083 | G12: 6829 | H12: 6498 | I12: 6281 | J12: 6132 | K12: 6068 | L12: 6078 | M12: 0.02172926014 | O12: Ardennes | P12: 279715
A13: 09 - Ariège | B13: 4449 | C13: 4076 | D13: 3823 | E13: 3677 | F13: 3569 | G13: 3445 | H13: 3343 | I13: 3429 | J13: 3528 | K13: 3694 | L13: 3920 | M13: 0.02569245088 | O13: Ariège | P13: 152574
A14: 10 - Aube | B14: 11714 | C14: 11696 | D14: 11352 | E14: 11069 | F14: 11217 | G14: 11218 | H14: 11281 | I14: 11509 | J14: 11880 | K14: 12202 | L14: 12676 | M14: 0.04114328744 | O14: Aube | P14: 308094
A15: 11 - Aude | B15: 11154 | C15: 10271 | D15: 9643 | E15: 9325 | F15: 9129 | G15: 8797 | H15: 8588 | I15: 8755 | J15: 8902 | K15: 9331 | L15: 10089 | M15: 0.02760494476 | O15: Aude | P15: 365478
A16: 12 - Aveyron | B16: 5000 | C16: 4742 | D16: 4483 | E16: 4429 | F16: 4340 | G16: 4378 | H16: 4327 | I16: 4209 | J16: 4092 | K16: 4221 | L16: 4262 | M16: 0.0152955025 | O16: Aveyron | P16: 278644
A17: 13 - Bouches-du-Rhône | B17: 120601 | C17: 125415 | D17: 123444 | E17: 121787 | F17: 119612 | G17: 121455 | H17: 120893 | I17: 121494 | J17: 122691 | K17: 125671 | L17: 128552 | M17: 0.06408154455 | O17: Bouches-du-Rhône | P17: 2006069
A18: 14 - Calvados | B18: 10635 | C18: 10626 | D18: 10017 | E18: 9699 | F18: 10079 | G18: 9940 | H18: 10316 | I18: 10672 | J18: 11413 | K18: 12332 | L18: 13173 | M18: 0.01904520942 | O18: Calvados | P18: 691670
A19: 15 - Cantal | B19: 1249 | C19: 1263 | D19: 1220 | E19: 1200 | F19: 1151 | G19: 1196 | H19: 1191 | I19: 1200 | J19: 1226 | K19: 1324 | L19: 1461 | M19: 0.009964670095 | O19: Cantal | P19: 146618
A20: 16 - Charente | B20: 6384 | C20: 5795 | D20: 5510 | E20: 5392 | F20: 5500 | G20: 5420 | H20: 5261 | I20: 5305 | J20: 5503 | K20: 5676 | L20: 6327 | M20: 0.01788030623 | O20: Charente | P20: 353853
A21: 17 - Charente-Maritime | B21: 6530 | C21: 6561 | D21: 6252 | E21: 5980 | F21: 6258 | G21: 5954 | H21: 6317 | I21: 6456 | J21: 6575 | K21: 7146 | L21: 7924 | M21: 0.01243782266 | O21: Charente-Maritime | P21: 637089
A22: 18 - Cher | B22: 7317 | C22: 6948 | D22: 6768 | E22: 6534 | F22: 6517 | G22: 6666 | H22: 6784 | I22: 7053 | J22: 7233 | K22: 7660 | L22: 8316 | M22: 0.02680246237 | O22: Cher | P22: 310270
A23: 19 - Corrèze | B23: 5356 | C23: 4945 | D23: 4571 | E23: 4496 | F23: 4500 | G23: 4556 | H23: 4618 | I23: 4765 | J23: 4825 | K23: 5010 | L23: 5222 | M23: 0.02163752383 | O23: Corrèze | P23: 241340
A24: 21 - Côte-d'Or | B24: 16305 | C24: 16299 | D24: 15808 | E24: 15953 | F24: 16685 | G24: 16973 | H24: 15789 | I24: 15526 | J24: 15789 | K24: 15921 | L24: 17387 | M24: 0.0327204637 | O24: Côte-d'Or | P24: 531380
A25: 22 - Côtes-d'Armor | B25: 6016 | C25: 5606 | D25: 5378 | E25: 5629 | F25: 5886 | G25: 6011 | H25: 6069 | I25: 6212 | J25: 6380 | K25: 6855 | L25: 7504 | M25: 0.01256116117 | O25: Côtes-d'Armor | P25: 597397
A26: 23 - Creuse | B26: 1562 | C26: 1350 | D26: 1234 | E26: 1168 | F26: 1162 | G26: 1119 | H26: 1137 | I26: 1124 | J26: 1144 | K26: 1283 | L26: 1484 | M26: 0.01230707989 | O26: Creuse | P26: 120581
A27: 24 - Dordogne | B27: 8203 | C27: 6872 | D27: 6320 | E27: 5751 | F27: 5559 | G27: 5061 | H27: 4715 | I27: 4850 | J27: 5002 | K27: 5382 | L27: 5834 | M27: 0.01401224931 | O27: Dordogne | P27: 416350
A28: 25 - Doubs | B28: 21754 | C28: 21173 | D28: 20236 | E28: 19181 | F28: 19225 | G28: 19383 | H28: 19834 | I28: 19958 | J28: 20332 | K28: 20809 | L28: 21284 | M28: 0.03980475398 | O28: Doubs | P28: 534710
A29: 26 - Drôme | B29: 17494 | C29: 16630 | D29: 16304 | E29: 15661 | F29: 15390 | G29: 15349 | H29: 15371 | I29: 15866 | J29: 16346 | K29: 16719 | L29: 17327 | M29: 0.03471238623 | O29: Drôme | P29: 499159
A30: 27 - Eure | B30: 12550 | C30: 12539 | D30: 12246 | E30: 12417 | F30: 12736 | G30: 13005 | H30: 13549 | I30: 14040 | J30: 14479 | K30: 15022 | L30: 15763 | M30: 0.02634424506 | O30: Eure | P30: 598347
A31: 28 - Eure-et-Loir | B31: 13398 | C31: 12931 | D31: 12589 | E31: 12722 | F31: 12841 | G31: 13170 | H31: 13505 | I31: 13600 | J31: 13760 | K31: 14202 | L31: 14985 | M31: 0.03454659468 | O31: Eure-et-Loir | P31: 433762
A32: 29 - Finistère | B32: 9781 | C32: 9234 | D32: 8965 | E32: 9045 | F32: 9912 | G32: 10256 | H32: 10638 | I32: 10633 | J32: 10975 | K32: 11632 | L32: 12475 | M32: 0.01377151972 | O32: Finistère | P32: 905855
A33: 2A - Corse-du-Sud | B33: 9334 | C33: 8977 | D33: 8563 | E33: 8165 | F33: 7762 | G33: 7437 | H33: 7091 | I33: 7083 | J33: 6949 | K33: 6827 | L33: 6799 | M33: 0.04483290692 | O33: Corse-du-Sud | P33: 151652
A34: 2B - Haute-Corse | B34: 9706 | C34: 9796 | D34: 9880 | E34: 9692 | F34: 9315 | G34: 9279 | H34: 9278 | I34: 8912 | J34: 8712 | K34: 8636 | L34: 8699 | M34: 0.05041145109 | O34: Haute-Corse | P34: 172560
A35: 30 - Gard | B35: 29942 | C35: 29979 | D35: 29564 | E35: 29671 | F35: 29472 | G35: 29356 | H35: 29405 | I35: 29321 | J35: 29316 | K35: 29439 | L35: 29598 | M35: 0.04021308943 | O35: Gard | P35: 736029
A36: 31 - Haute-Garonne | B36: 51978 | C36: 51369 | D36: 48283 | E36: 47989 | F36: 49566 | G36: 49707 | H36: 50972 | I36: 53528 | J36: 54968 | K36: 56919 | L36: 60040 | M36: 0.04556534727 | O36: Haute-Garonne | P36: 1317668
A37: 32 - Gers | B37: 3845 | C37: 3187 | D37: 2875 | E37: 2834 | F37: 2716 | G37: 2598 | H37: 2535 | I37: 2691 | J37: 2882 | K37: 3124 | L37: 3405 | M37: 0.01786229508 | O37: Gers | P37: 190625
A38: 33 - Gironde | B38: 45447 | C38: 44845 | D38: 43132 | E38: 43677 | F38: 44100 | G38: 45090 | H38: 45946 | I38: 46838 | J38: 48860 | K38: 51074 | L38: 54228 | M38: 0.03553566935 | O38: Gironde | P38: 1526016
A39: 34 - Hérault | B39: 52105 | C39: 51316 | D39: 48963 | E39: 48021 | F39: 50218 | G39: 50292 | H39: 51369 | I39: 52456 | J39: 53729 | K39: 55492 | L39: 58053 | M39: 0.0524228868 | O39: Hérault | P39: 1107398
A40: 35 - Ille-et-Vilaine | B40: 15583 | C40: 16462 | D40: 15879 | E40: 16619 | F40: 18402 | G40: 18700 | H40: 19784 | I40: 19935 | J40: 21295 | K40: 22131 | L40: 25299 | M40: 0.02450883515 | O40: Ille-et-Vilaine | P40: 1032240
A41: 36 - Indre | B41: 3448 | C41: 3475 | D41: 3397 | E41: 3407 | F41: 3404 | G41: 3477 | H41: 3570 | I41: 3607 | J41: 3688 | K41: 3881 | L41: 4221 | M41: 0.01866254007 | O41: Indre | P41: 226175
A42: 37 - Indre-et-Loire | B42: 14235 | C42: 14050 | D42: 13483 | E42: 13416 | F42: 13767 | G42: 13752 | H42: 13966 | I42: 14235 | J42: 14990 | K42: 15849 | L42: 17119 | M42: 0.02834628198 | O42: Indre-et-Loire | P42: 603924
A43: 38 - Isère | B43: 64421 | C43: 64234 | D43: 61764 | E43: 59810 | F43: 59303 | G43: 57507 | H43: 56599 | I43: 55892 | J43: 55841 | K43: 57522 | L43: 60006 | M43: 0.04825196587 | O43: Isère | P43: 1243597
A44: 39 - Jura | B44: 8426 | C44: 8100 | D44: 7655 | E44: 7132 | F44: 6892 | G44: 6789 | H44: 6749 | I44: 6831 | J44: 6972 | K44: 7062 | L44: 7257 | M44: 0.02783862268 | O44: Jura | P44: 260681
A45: 40 - Landes | B45: 5309 | C45: 4979 | D45: 4579 | E45: 4306 | F45: 4240 | G45: 4054 | H45: 3897 | I45: 3938 | J45: 4010 | K45: 4290 | L45: 4707 | M45: 0.01175348397 | O45: Landes | P45: 400477
A46: 41 - Loir-et-Cher | B46: 10432 | C46: 10335 | D46: 9921 | E46: 9643 | F46: 9741 | G46: 10045 | H46: 10205 | I46: 10432 | J46: 10682 | K46: 11073 | L46: 11721 | M46: 0.035138368 | O46: Loir-et-Cher | P46: 333567
A47: 42 - Loire | B47: 34876 | C47: 35084 | D47: 33836 | E47: 32786 | F47: 33384 | G47: 33530 | H47: 33391 | I47: 33829 | J47: 34178 | K47: 35526 | L47: 36827 | M47: 0.04862902001 | O47: Loire | P47: 757305
A48: 43 - Haute-Loire | B48: 3632 | C48: 3427 | D48: 3319 | E48: 3207 | F48: 3187 | G48: 3105 | H48: 3046 | I48: 3044 | J48: 3067 | K48: 3168 | L48: 3254 | M48: 0.01436232428 | O48: Haute-Loire | P48: 226565
A49: 44 - Loire-Atlantique | B49: 21315 | C49: 22526 | D49: 22441 | E49: 22577 | F49: 24864 | G49: 25705 | H49: 27065 | I49: 28736 | J49: 30749 | K49: 33273 | L49: 36110 | M49: 0.02681584325 | O49: Loire-Atlantique | P49: 1346592
A50: 45 - Loiret | B50: 29995 | C50: 28865 | D50: 27444 | E50: 26711 | F50: 26772 | G50: 26782 | H50: 26932 | I50: 27638 | J50: 28551 | K50: 29882 | L50: 31511 | M50: 0.04704981209 | O50: Loiret | P50: 669737
A51: 46 - Lot | B51: 3995 | C51: 3528 | D51: 3337 | E51: 3172 | F51: 3013 | G51: 2862 | H51: 2765 | I51: 2799 | J51: 2898 | K51: 3017 | L51: 3234 | M51: 0.0186238828 | O51: Lot | P51: 173648
A52: 47 - Lot-et-Garonne | B52: 9922 | C52: 9434 | D52: 9094 | E52: 8788 | F52: 8650 | G52: 8365 | H52: 8413 | I52: 8503 | J52: 8563 | K52: 8815 | L52: 9234 | M52: 0.02771025766 | O52: Lot-et-Garonne | P52: 333234
A53: 48 - Lozère | B53: 1676 | C53: 1541 | D53: 1436 | E53: 1335 | F53: 1263 | G53: 1222 | H53: 1105 | I53: 1122 | J53: 1170 | K53: 1257 | L53: 1322 | M53: 0.01731272918 | O53: Lozère | P53: 76360
A54: 49 - Maine-et-Loire | B54: 12349 | C54: 12620 | D54: 12239 | E54: 12241 | F54: 13209 | G54: 13737 | H54: 14294 | I54: 14952 | J54: 15283 | K54: 15914 | L54: 17255 | M54: 0.02141116383 | O54: Maine-et-Loire | P54: 805888
A55: 50 - Manche | B55: 3783 | C55: 3640 | D55: 3364 | E55: 3390 | F55: 3672 | G55: 3664 | H55: 3536 | I55: 3654 | J55: 3905 | K55: 4293 | L55: 4630 | M55: 0.009260777905 | O55: Manche | P55: 499958
A56: 51 - Marne | B56: 16945 | C56: 17250 | D56: 16530 | E56: 16573 | F56: 17778 | G56: 17895 | H56: 18196 | I56: 18707 | J56: 19554 | K56: 20479 | L56: 21794 | M56: 0.03818036253 | O56: Marne | P56: 570817
A57: 52 - Haute-Marne | B57: 3737 | C57: 3634 | D57: 3455 | E57: 3317 | F57: 3293 | G57: 3228 | H57: 3236 | I57: 3184 | J57: 3213 | K57: 3295 | L57: 3532 | M57: 0.0195491302 | O57: Haute-Marne | P57: 180673
A58: 53 - Mayenne | B58: 2839 | C58: 2882 | D58: 2826 | E58: 2813 | F58: 3051 | G58: 3247 | H58: 3297 | I58: 3391 | J58: 3550 | K58: 3905 | L58: 4305 | M58: 0.01400132045 | O58: Mayenne | P58: 307471
A59: 54 - Meurthe-et-Moselle | B59: 30653 | C59: 30448 | D59: 29983 | E59: 29846 | F59: 29571 | G59: 29846 | H59: 30099 | I59: 29507 | J59: 29709 | K59: 30446 | L59: 31260 | M59: 0.04269599387 | O59: Meurthe-et-Moselle | P59: 732153
A60: 55 - Meuse | B60: 3901 | C60: 3583 | D60: 3245 | E60: 3061 | F60: 2940 | G60: 2879 | H60: 2860 | I60: 2794 | J60: 2753 | K60: 2824 | L60: 2904 | M60: 0.0151621156 | O60: Meuse | P60: 191530
A61: 56 - Morbihan | B61: 7452 | C61: 7356 | D61: 7049 | E61: 7127 | F61: 7385 | G61: 7440 | H61: 7672 | I61: 7943 | J61: 8313 | K61: 9145 | L61: 10245 | M61: 0.01382495942 | O61: Morbihan | P61: 741051
A62: 57 - Moselle | B62: 54765 | C62: 51637 | D62: 48026 | E62: 45998 | F62: 43640 | G62: 41947 | H62: 41937 | I62: 41504 | J62: 42336 | K62: 43654 | L62: 45514 | M62: 0.04354764944 | O62: Moselle | P62: 1045154
A63: 58 - Nièvre | B63: 4368 | C63: 4224 | D63: 4063 | E63: 4053 | F63: 4167 | G63: 4185 | H63: 4307 | I63: 4426 | J63: 4507 | K63: 4636 | L63: 4743 | M63: 0.02220827929 | O63: Nièvre | P63: 213569
A64: 59 - Nord | B64: 93086 | C64: 90670 | D64: 87801 | E64: 85918 | F64: 85902 | G64: 84799 | H64: 85199 | I64: 86875 | J64: 88765 | K64: 92543 | L64: 97695 | M64: 0.03752488984 | O64: Nord | P64: 2603472
A65: 60 - Oise | B65: 32627 | C65: 32388 | D65: 31828 | E65: 31683 | F65: 32164 | G65: 31897 | H65: 32410 | I65: 33265 | J65: 34412 | K65: 35245 | L65: 36559 | M65: 0.04465603166 | O65: Oise | P65: 818680
A66: 61 - Orne | B66: 5056 | C66: 4909 | D66: 4688 | E66: 4511 | F66: 4506 | G66: 4534 | H66: 4539 | I66: 4676 | J66: 4849 | K66: 5087 | L66: 5423 | M66: 0.01884622068 | O66: Orne | P66: 287750
A67: 62 - Pas-de-Calais | B67: 18702 | C67: 17356 | D67: 16224 | E67: 15832 | F67: 16008 | G67: 15742 | H67: 16257 | I67: 16890 | J67: 17179 | K67: 18171 | L67: 18976 | M67: 0.01288614814 | O67: Pas-de-Calais | P67: 1472589
A68: 63 - Puy-de-Dôme | B68: 21992 | C68: 21501 | D68: 21502 | E68: 21235 | F68: 21059 | G68: 21230 | H68: 21290 | I68: 21411 | J68: 21711 | K68: 22878 | L68: 23350 | M68: 0.03624560706 | O68: Puy-de-Dôme | P68: 644216
A69: 64 - Pyrénées-Atlantiques | B69: 13242 | C69: 11788 | D69: 10693 | E69: 10008 | F69: 9730 | G69: 9346 | H69: 9107 | I69: 9518 | J69: 9952 | K69: 10795 | L69: 12088 | M69: 0.01811617552 | O69: Pyrénées-Atlantiques | P69: 667249
A70: 65 - Hautes-Pyrénées | B70: 4273 | C70: 3917 | D70: 3576 | E70: 3331 | F70: 3252 | G70: 3110 | H70: 3045 | I70: 3109 | J70: 3183 | K70: 3492 | L70: 3928 | M70: 0.01715658441 | O70: Hautes-Pyrénées | P70: 228950
A71: 66 - Pyrénées-Orientales | B71: 18950 | C71: 17359 | D71: 15996 | E71: 14801 | F71: 14142 | G71: 13471 | H71: 12996 | I71: 13195 | J71: 13501 | K71: 13956 | L71: 14773 | M71: 0.03167948671 | O71: Pyrénées-Orientales | P71: 466327
A72: 67 - Bas-Rhin | B72: 58273 | C72: 57594 | D72: 56019 | E72: 55953 | F72: 56339 | G72: 55644 | H72: 57266 | I72: 57783 | J72: 59053 | K72: 61569 | L72: 64032 | M72: 0.05754056155 | O72: Bas-Rhin | P72: 1112815
A73: 68 - Haut-Rhin | B73: 43343 | C73: 41514 | D73: 38800 | E73: 36889 | F73: 35539 | G73: 34634 | H73: 34337 | I73: 34334 | J73: 35275 | K73: 36063 | L73: 37259 | M73: 0.04901635764 | O73: Haut-Rhin | P73: 760134
A74: 69 - Rhône | B74: 121986 | C74: 119692 | D74: 113487 | E74: 113393 | F74: 114062 | G74: 114448 | H74: 117152 | I74: 118217 | J74: 119066 | K74: 123805 | L74: 132138 | M74: 0.07333320384 | O74: Rhône | P74: 1801885
A75: 70 - Haute-Saône | B75: 6242 | C75: 6154 | D75: 5880 | E75: 5687 | F75: 5655 | G75: 5592 | H75: 5524 | I75: 5490 | J75: 5534 | K75: 5505 | L75: 5727 | M75: 0.0240279928 | O75: Haute-Saône | P75: 238347
A76: 71 - Saône-et-Loire | B76: 17639 | C76: 17294 | D76: 16411 | E76: 15904 | F76: 15508 | G76: 15407 | H76: 15354 | I76: 15423 | J76: 15563 | K76: 15886 | L76: 16753 | M76: 0.03014278826 | O76: Saône-et-Loire | P76: 555788
A77: 72 - Sarthe | B77: 8161 | C77: 8657 | D77: 8902 | E77: 9526 | F77: 9810 | G77: 10450 | H77: 11024 | I77: 11183 | J77: 11842 | K77: 12508 | L77: 13062 | M77: 0.02296575005 | O77: Sarthe | P77: 568760
A78: 73 - Savoie | B78: 16152 | C78: 15954 | D78: 15207 | E78: 14962 | F78: 14927 | G78: 15143 | H78: 15246 | I78: 15456 | J78: 15916 | K78: 16387 | L78: 16734 | M78: 0.03919667201 | O78: Savoie | P78: 426924
A79: 74 - Haute-Savoie | B79: 34145 | C79: 32335 | D79: 31600 | E79: 31025 | F79: 30575 | G79: 30247 | H79: 30634 | I79: 31494 | J79: 32102 | K79: 32920 | L79: 34366 | M79: 0.04388304834 | O79: Haute-Savoie | P79: 783127
A80: 75 - Paris | B80: 335604 | C80: 343075 | D80: 322381 | E80: 313417 | F80: 309299 | G80: 306562 | H80: 298993 | I80: 297728 | J80: 296488 | K80: 290480 | L80: 291521 | M80: 0.1312894487 | O80: Paris | P80: 2220445
A81: 76 - Seine-Maritime | B81: 33455 | C81: 34220 | D81: 32936 | E81: 33456 | F81: 35107 | G81: 36107 | H81: 37571 | I81: 38564 | J81: 40106 | K81: 42091 | L81: 45111 | M81: 0.03586158102 | O81: Seine-Maritime | P81: 1257920
A82: 77 - Seine-et-Marne | B82: 77161 | C82: 77132 | D82: 73752 | E82: 71269 | F82: 71160 | G82: 70576 | H82: 70916 | I82: 72767 | J82: 73721 | K82: 77991 | L82: 81566 | M82: 0.05919819777 | O82: Seine-et-Marne | P82: 1377846
A83: 78 - Yvelines | B83: 106076 | C83: 104287 | D83: 101623 | E83: 99805 | F83: 97071 | G83: 96218 | H83: 96469 | I83: 98010 | J83: 100320 | K83: 103258 | L83: 111748 | M83: 0.0786033327 | O83: Yvelines | P83: 1421670
A84: 79 - Deux-Sèvres | B84: 3308 | C84: 3160 | D84: 2985 | E84: 2850 | F84: 2834 | G84: 2787 | H84: 2795 | I84: 3008 | J84: 3349 | K84: 3672 | L84: 4268 | M84: 0.01142542022 | O84: Deux-Sèvres | P84: 373553
A85: 80 - Somme | B85: 9187 | C85: 8920 | D85: 8479 | E85: 8655 | F85: 9622 | G85: 9918 | H85: 9963 | I85: 10131 | J85: 10256 | K85: 10522 | L85: 11532 | M85: 0.02017381812 | O85: Somme | P85: 571632
A86: 81 - Tarn | B86: 8477 | C86: 7634 | D86: 7157 | E86: 6841 | F86: 6788 | G86: 6694 | H86: 6659 | I86: 6775 | J86: 6851 | K86: 7069 | L86: 7594 | M86: 0.01975166071 | O86: Tarn | P86: 384474
A87: 82 - Tarn-et-Garonne | B87: 9807 | C87: 9727 | D87: 9482 | E87: 9070 | F87: 8806 | G87: 8424 | H87: 8302 | I87: 8202 | J87: 8253 | K87: 8459 | L87: 8667 | M87: 0.03431415246 | O87: Tarn-et-Garonne | P87: 252578
A88: 83 - Var | B88: 41257 | C88: 40358 | D88: 38418 | E88: 36749 | F88: 35714 | G88: 35046 | H88: 35452 | I88: 35739 | J88: 36365 | K88: 36279 | L88: 37777 | M88: 0.03638659542 | O88: Var | P88: 1038212
A89: 84 - Vaucluse | B89: 34795 | C89: 35208 | D89: 35442 | E89: 35151 | F89: 35085 | G89: 35763 | H89: 36129 | I89: 36340 | J89: 36742 | K89: 37063 | L89: 37870 | M89: 0.06831128444 | O89: Vaucluse | P89: 554374
A90: 85 - Vendée | B90: 3293 | C90: 3334 | D90: 3290 | E90: 3241 | F90: 3509 | G90: 3565 | H90: 3633 | I90: 3908 | J90: 4187 | K90: 4670 | L90: 5354 | M90: 0.008086123101 | O90: Vendée | P90: 662122
A91: 86 - Vienne | B91: 7880 | C91: 8108 | D91: 7203 | E91: 7390 | F91: 7760 | G91: 7839 | H91: 8120 | I91: 8166 | J91: 8541 | K91: 9375 | L91: 10351 | M91: 0.02389410969 | O91: Vienne | P91: 433203
A92: 87 - Haute-Vienne | B92: 10630 | C92: 10600 | D92: 10325 | E92: 10720 | F92: 11462 | G92: 11847 | H92: 12087 | I92: 12119 | J92: 12054 | K92: 12696 | L92: 13529 | M92: 0.03596234971 | O92: Haute-Vienne | P92: 376199
A93: 88 - Vosges | B93: 8634 | C93: 8286 | D93: 7969 | E93: 7851 | F93: 7698 | G93: 7487 | H93: 7415 | I93: 7499 | J93: 7619 | K93: 7818 | L93: 8030 | M93: 0.0214958775 | O93: Vosges | P93: 373560
A94: 89 - Yonne | B94: 9927 | C94: 9743 | D94: 9268 | E94: 8740 | F94: 8612 | G94: 8437 | H94: 8743 | I94: 9094 | J94: 9481 | K94: 9856 | L94: 10536 | M94: 0.03082378135 | O94: Yonne | P94: 341814
A95: 90 - Territoire de Belfort | B95: 7208 | C95: 7263 | D95: 6935 | E95: 6991 | F95: 6868 | G95: 6760 | H95: 6746 | I95: 6857 | J95: 7016 | K95: 7235 | L95: 7386 | M95: 0.0511729738 | O95: Territoire de Belfort | P95: 144334
A96: 91 - Essonne | B96: 84840 | C96: 85881 | D96: 83649 | E96: 82856 | F96: 84908 | G96: 85791 | H96: 88986 | I96: 92798 | J96: 97126 | K96: 101861 | L96: 107375 | M96: 0.08466537563 | O96: Essonne | P96: 1268228
A97: 92 - Hauts-de-Seine | B97: 154169 | C97: 159912 | D97: 157823 | E97: 160521 | F97: 160563 | G97: 161403 | H97: 163493 | I97: 164362 | J97: 166672 | K97: 166808 | L97: 169556 | M97: 0.1061204053 | O97: Hauts-de-Seine | P97: 1597770
A98: 93 - Seine-Saint-Denis | B98: 255615 | C98: 263371 | D98: 265733 | E98: 267437 | F98: 272344 | G98: 279388 | H98: 291627 | I98: 301081 | J98: 305533 | K98: 313646 | L98: 317877 | M98: 0.2023369412 | O98: Seine-Saint-Denis | P98: 1571028
A99: 94 - Val-de-Marne | B99: 140293 | C99: 145752 | D99: 147141 | E99: 145982 | F99: 148716 | G99: 151068 | H99: 154605 | I99: 156837 | J99: 159692 | K99: 160849 | L99: 169319 | M99: 0.1240396795 | O99: Val-de-Marne | P99: 1365039
A100: 95 - Val-d'Oise | B100: 117919 | C100: 128098 | D100: 126093 | E100: 124833 | F100: 125331 | G100: 128374 | H100: 132921 | I100: 137543 | J100: 143567 | K100: 149277 | L100: 154108 | M100: 0.1278332762 | O100: Val-d'Oise | P100: 1205539
A101: Total | B101: 3002624 | C101: 3005113 | D101: 2908868 | E101: 2866433 | F101: 2876220 | G101: 2881986 | H101: 2914950 | I101: 2959596 | J101: 3017872 | K101: 3099164 | L101: 3225759 | M101: 0.05038047598 | O101: France métropolitaine | P101: 64027958
A104: Les 20 197 étrangers au 31 décembre 2015 du département de l'AIN représentent 3,30% de la population française de ce département.

Sheet XXX Flux par titre et tts pays
D1: France entière et TTS PAYS
A3: 2015 | B3: Titres communautaires | C3: CCT | D3: CR | E3: CRA | F3: CSP | G3: CST | H3: Retraite | I3: VLS/TS | J3: Total Titres
A4: Union Européenne (28 pays) | B4: 5915 | D4: 13 | G4: 40 | I4: 17 | J4: 5985
A5: Pays tiers | B5: 5210 | C5: 221 | D5: 21007 | E5: 27114 | F5: 20 | G5: 76019 | H5: 320 | I5: 98776 | J5: 228687
A6: Total | B6: 11125 | C6: 221 | D6: 21020 | E6: 27114 | F6: 20 | G6: 76059 | H6: 320 | I6: 98793 | J6: 234672
A8: 2016 | B8: Titres communautaires | C8: CCT | D8: CR | E8: CRA | F8: CSP | G8: CST | H8: Retraite | I8: VLS/TS | J8: Total Titres
A9: Union Européenne (28 pays) | B9: 7816 | C9: 1 | D9: 21 | G9: 43 | I9: 20 | J9: 7901
A10: Pays tiers | B10: 5304 | C10: 195 | D10: 24729 | E10: 28226 | F10: 2440 | G10: 74954 | H10: 260 | I10: 101110 | J10: 237218
A11: Total | B11: 13120 | C11: 196 | D11: 24750 | E11: 28226 | F11: 2440 | G11: 74997 | H11: 260 | I11: 101130 | J11: 245119
A13: 2017 (provisoire) | B13: Titres communautaires | C13: CCT | D13: CR | E13: CRA | F13: CSP | G13: CST | H13: Retraite | I13: VLS/TS | J13: Total Titres
A14: Union Européenne (28 pays) | B14: 9243 | D14: 15 | F14: 2 | G14: 44 | I14: 17 | J14: 9321
A15: Pays tiers | B15: 5789 | D15: 27891 | E15: 30290 | F15: 9951 | G15: 74484 | H15: 283 | I15: 101487 | J15: 250175
A16: Total | B16: 15032 | C16: 0 | D16: 27906 | E16: 30290 | F16: 9953 | G16: 74528 | H16: 283 | I16: 101504 | J16: 259496
A17: Source : AGDREF/DSED
D24: METRO et TTS PAYS
A27: Somme de SommeDeTotal titres | C27: Type de titre regroupé bis
A28: Année | B28: Communautaire détaillée2 | C28: UE | D28: CCT | E28: CR | F28: CRA | G28: CSP | H28: CST | I28: RETRAITE | J28: VLS | K28: Total général
A29: 2016 | B29: UE | C29: 7754 | D29: 1 | E29: 18 | H29: 43 | J29: 20 | K29: 7836
B30: 6_Pays tiers | C30: 5280 | D30: 192 | E30: 24552 | F30: 28214 | G30: 2425 | H30: 69525 | I30: 259 | J30: 99906 | K30: 230353
A31: Total 2016 | C31: 13034 | D31: 193 | E31: 24570 | F31: 28214 | G31: 2425 | H31: 69568 | I31: 259 | J31: 99926 | K31: 238189
A32: 2017 PROV | B32: UE | C32: 9209 | E32: 14 | G32: 2 | H32: 41 | J32: 17 | K32: 9283
B33: 6_Pays tiers | C33: 5767 | E33: 27544 | F33: 30260 | G33: 9902 | H33: 68623 | I33: 283 | J33: 100286 | K33: 242665
A34: Total 2017 PROV | C34: 14976 | E34: 27558 | F34: 30260 | G34: 9904 | H34: 68664 | I34: 283 | J34: 100303 | K34: 251948

Sheet 1er titre et graphique
A1: I-2-3 bis | B1: 1er titre PT | M1: Part
B3: 2007 | C3: 2008 | D3: 2009 | E3: 2010 | F3: 2011 | G3: 2012 | H3: 2013 | I3: 2014 | J3: 2015 | K3: 2016 | L3: 2017 (prov) | M3: Evolution 2016-2017
A4: A. Économique | B4: 11751 | C4: 21352 | D4: 20185 | E4: 18280 | F4: 17834 | G4: 16013 | H4: 17800 | I4: 19054 | J4: 20628 | K4: 22982 | L4: 27209 | M4: 0.184
A5: B. Familial | B5: 87537 | C5: 83465 | D5: 85715 | E5: 83182 | F5: 81172 | G5: 87170 | H5: 93714 | I5: 92326 | J5: 90113 | K5: 89124 | L5: 87109 | M5: -0.023
A6: C. Étudiants | B6: 46663 | C6: 52163 | D6: 58586 | E6: 65281 | F6: 64928 | G6: 58857 | H6: 62815 | I6: 64996 | J6: 70023 | K6: 73644 | L6: 78478 | M6: 0.066
A7: D. Divers | B7: 10511 | C7: 9667 | D7: 11343 | E7: 11572 | F7: 11633 | G7: 12624 | H7: 13148 | I7: 13742 | J7: 13866 | K7: 14741 | L7: 14265 | M7: -0.032
A8: E. Humanitaire | B8: 15445 | C8: 17246 | D8: 18581 | E8: 18220 | F8: 17487 | G8: 18456 | H8: 17916 | I8: 20822 | J8: 22903 | K8: 29862 | L8: 35604 | M8: 0.192
A9: Total | B9: 171907 | C9: 183893 | D9: 194410 | E9: 196535 | F9: 193054 | G9: 193120 | H9: 205393 | I9: 210940 | J9: 217533 | K9: 230353 | L9: 242665 | M9: 0.053
A10: Evolution | B10: -0.062 | C10: 0.06972374598 | D10: 0.05719086643 | E10: 0.01093050769 | F10: -0.01771185794 | G10: 0.0003418732583 | H10: 0.0635511599 | I10: 0.02700676265 | J10: 0.03125533327 | K10: 0.05893358709 | L10: 0.053
A11: Source : AGDREF/DSED

Sheet 1er titre PT
A1: I-2-3 | B1: Flux 1er titre (métro-pays-tiers)
C3: 2007 | D3: 2008 | E3: 2009 | F3: 2010 | G3: 2011 | H3: 2012 | I3: 2013 | J3: 2014 | K3: 2015 | L3: 2016 | M3: 2017 (p) | O3: 2016-2017
A4: A. Économique | B4: 1 – Compétences et talents | C4: 5 | D4: 183 | E4: 368 | F4: 319 | G4: 289 | H4: 286 | I4: 251 | J4: 228 | K4: 220 | L4: 192 | O4: -
B5: 2 – Actif non salarié | C5: 360 | D5: 225 | E5: 98 | F5: 121 | G5: 121 | H5: 169 | I5: 140 | J5: 147 | K5: 169 | L5: 187 | M5: 352 | O5: 0.8823529412
B6: 3 – Scientifique | C6: 1531 | D6: 1926 | E6: 2242 | F6: 2268 | G6: 2073 | H6: 2691 | I6: 3036 | J6: 3267 | K6: 3763 | L6: 3317 | M6: 3929 | O6: 0.1845040699
B7: 4 – Artiste | C7: 263 | D7: 286 | E7: 183 | F7: 181 | G7: 173 | H7: 160 | I7: 146 | J7: 175 | K7: 199 | L7: 167 | M7: 132 | O7: -0.2095808383
B8: 5 – Salarié | C8: 5879 | D8: 11718 | E8: 14244 | F8: 13738 | G8: 13559 | H8: 11201 | I8: 12881 | J8: 13692 | K8: 14495 | L8: 17237 | M8: 20488 | O8: 0.1886059059
B9: 6 – Saisonnier ou temporaire | C9: 3713 | D9: 7014 | E9: 3050 | F9: 1653 | G9: 1619 | H9: 1506 | I9: 1346 | J9: 1545 | K9: 1782 | L9: 1882 | M9: 2308 | O9: 0.2263549416
A10: A. Économique | C10: 11751 | D10: 21352 | E10: 20185 | F10: 18280 | G10: 17834 | H10: 16013 | I10: 17800 | J10: 19054 | K10: 20628 | L10: 22982 | M10: 27209 | O10: 0.1839265512
A11: B. Familial | B11: 1 – Famille de Français | C11: 49767 | D11: 48833 | E11: 53170 | F11: 49838 | G11: 48952 | H11: 52070 | I11: 50245 | J11: 50920 | K11: 50143 | L11: 49559 | M11: 48604 | O11: -0.01926996106
B12: 2 – Membre de famille | C12: 18950 | D12: 17304 | E12: 15171 | F12: 15678 | G12: 14809 | H12: 16581 | I12: 23127 | J12: 23099 | K12: 23786 | L12: 24152 | M12: 23168 | O12: -0.04074196754
B13: 3 – Liens personnels et familiaux | C13: 18820 | D13: 17328 | E13: 17374 | F13: 17666 | G13: 17411 | H13: 18519 | I13: 20342 | J13: 18307 | K13: 16184 | L13: 15413 | M13: 15337 | O13: -0.004930902485
A14: B. Familial | C14: 87537 | D14: 83465 | E14: 85715 | F14: 83182 | G14: 81172 | H14: 87170 | I14: 93714 | J14: 92326 | K14: 90113 | L14: 89124 | M14: 87109 | O14: -0.02260894933
A15: C. Étudiants | C15: 46663 | D15: 52163 | E15: 58586 | F15: 65281 | G15: 64928 | H15: 58857 | I15: 62815 | J15: 64996 | K15: 70023 | L15: 73644 | M15: 78478 | O15: 0.06564010646
A16: D. Divers | B16: 1 – Visiteur | C16: 5241 | D16: 4475 | E16: 5877 | F16: 6152 | G16: 6309 | H16: 6389 | I16: 6716 | J16: 6787 | K16: 6745 | L16: 7005 | M16: 5939 | O16: -0.1521770164
B17: 2 – Étranger entré mineur | C17: 2935 | D17: 3015 | E17: 3365 | F17: 3704 | G17: 3918 | H17: 4762 | I17: 4993 | J17: 5379 | K17: 5587 | L17: 5826 | M17: 6790 | O17: 0.1654651562
B18: 3 – Rente accident du travail | C18: 75 | D18: 98 | E18: 123 | F18: 70 | G18: 45 | H18: 39 | I18: 24 | J18: 22 | K18: 13 | L18: 18 | M18: 22 | O18: 0.2222222222
B19: 4 – Ancien combattant | C19: 199 | D19: 193 | E19: 225 | F19: 153 | G19: 141 | H19: 154 | I19: 257 | J19: 200 | K19: 163 | L19: 298 | M19: 118 | O19: -0.6040268456
B20: 5 – Retraité ou pensionné | C20: 1645 | D20: 1398 | E20: 1200 | F20: 906 | G20: 544 | H20: 573 | I20: 547 | J20: 666 | K20: 714 | L20: 834 | M20: 664 | O20: -0.2038369305
B21: 6 – Motifs divers | C21: 416 | D21: 488 | E21: 553 | F21: 587 | G21: 676 | H21: 707 | I21: 611 | J21: 688 | K21: 644 | L21: 760 | M21: 732 | O21: -0.03684210526
A22: D. Divers | C22: 10511 | D22: 9667 | E22: 11343 | F22: 11572 | G22: 11633 | H22: 12624 | I22: 13148 | J22: 13742 | K22: 13866 | L22: 14741 | M22: 14265 | O22: -0.03229088936
A23: E. Humanitaire | B23: 1 – Réfugié et apatride | C23: 9253 | D23: 10742 | E23: 10764 | F23: 10073 | G23: 9715 | H23: 10000 | I23: 9936 | J23: 11483 | K23: 13656 | L23: 17349 | M23: 20479 | O23: 0.1804138567
B24: 2 – Asile territorial/protection subsidiaire | C24: 520 | D24: 753 | E24: 1797 | F24: 1759 | G24: 1618 | H24: 2024 | I24: 1956 | J24: 2364 | K24: 2614 | L24: 5542 | M24: 10779 | O24: 0.9449657163
B25: 3 – Étranger malade | C25: 5672 | D25: 5733 | E25: 5965 | F25: 6325 | G25: 6122 | H25: 6396 | I25: 5986 | J25: 6912 | K25: 6555 | L25: 6850 | M25: 4187 | O25: -0.3887591241
B26: 4 – Victime de la traite des êtres humains | D26: 18 | E26: 55 | F26: 63 | G26: 32 | H26: 36 | I26: 38 | J26: 63 | K26: 45 | L26: 74 | M26: 113 | O26: 0.527027027
B27: 5 - Victime de violences conjugales | K27: 33 | L27: 47 | M27: 46
A28: E. Humanitaire | C28: 15445 | D28: 17246 | E28: 18581 | F28: 18220 | G28: 17487 | H28: 18456 | I28: 17916 | J28: 20822 | K28: 22903 | L28: 29862 | M28: 35604 | O28: 0.1922845087
A29: Total | C29: 171907 | D29: 183893 | E29: 194410 | F29: 196535 | G29: 193054 | H29: 193120 | I29: 205393 | J29: 210940 | K29: 217533 | L29: 230353 | M29: 242665 | O29: 0.0534484031

Sheet 1er titre UE
A1: I-2-4 | B1: 1er titre UE
C3: 2007 | D3: 2008 | E3: 2009 | F3: 2010 | G3: 2011 | H3: 2012 | I3: 2013 | J3: 2014 | K3: 2015 | L3: 2016 | M3: 2017 | O3: 2015-2016 | P3: 2016-2017
A4: A. Économique | B4: 2 – Actif non salarié | C4: 740 | D4: 755 | E4: 538 | F4: 720 | G4: 699 | H4: 805 | I4: 965 | J4: 198 | K4: 109 | L4: 73 | M4: 78 | O4: -0.3302752294 | P4: 0.06849315068
B5: 3 – Scientifique | C5: 63 | D5: 31 | E5: 18 | F5: 8 | G5: 16 | H5: 13 | I5: 6 | J5: 4 | K5: 1
B6: 4 – Artiste | C6: 22 | D6: 8 | E6: 20 | F6: 1 | G6: 5 | H6: 1 | I6: 2
B7: 5 – Salarié | C7: 5335 | D7: 4961 | E7: 2545 | F7: 2703 | G7: 2292 | H7: 2691 | I7: 4631 | J7: 1506 | K7: 986 | L7: 1291 | M7: 1263 | O7: 0.3093306288 | P7: -0.02168861348
B8: 6 – Saisonnier ou temporaire | C8: 212 | D8: 984 | E8: 1388 | F8: 1628 | G8: 2100 | H8: 2695 | I8: 695
A9: Total A. Économique | C9: 6372 | D9: 6739 | E9: 4509 | F9: 5060 | G9: 5112 | H9: 6205 | I9: 6299 | J9: 1708 | K9: 1096 | L9: 1364 | M9: 1341 | O9: 0.2445255474 | P9: -0.01686217009
A10: B. Familial | B10: 1 – Famille de Français | C10: 786 | D10: 494 | E10: 294 | F10: 327 | G10: 323 | H10: 343 | I10: 94 | J10: 8 | K10: 8 | L10: 4 | M10: 3 | O10: -0.5 | P10: -0.25
B11: 2 – Membre de famille | C11: 754 | D11: 1265 | E11: 1134 | F11: 1267 | G11: 1415 | H11: 1672 | I11: 1788 | J11: 616 | K11: 325 | L11: 276 | M11: 260 | O11: -0.1507692308 | P11: -0.05797101449
B12: 3 – Liens personnels et familiaux | C12: 184 | D12: 73 | E12: 49 | F12: 47 | G12: 38 | H12: 37 | I12: 24 | J12: 6 | K12: 2 | L12: 3 | M12: 5 | O12: 0.5 | P12: 0.6666666667
A13: Total B. Familial | C13: 1724 | D13: 1832 | E13: 1477 | F13: 1641 | G13: 1776 | H13: 2052 | I13: 1906 | J13: 630 | K13: 335 | L13: 283 | M13: 268 | O13: -0.1552238806 | P13: -0.05300353357
A14: C. Étudiants | C14: 1203 | D14: 745 | E14: 566 | F14: 634 | G14: 683 | H14: 766 | I14: 527 | J14: 64 | K14: 53 | L14: 48 | M14: 38 | O14: -0.09433962264 | P14: -0.2083333333
A15: D. Divers | B15: 1 – Visiteur | C15: 146 | D15: 141 | E15: 76 | F15: 81 | G15: 64 | H15: 71 | I15: 95 | J15: 87 | K15: 70 | L15: 80 | M15: 76 | O15: 0.1428571429 | P15: -0.05
B16: 2 – Étranger entré mineur | C16: 1 | D16: 5 | E16: 3 | F16: 2 | G16: 2 | H16: 4 | J16: 1 | L16: 1 | M16: 2 | P16: 1
B17: 3 – Rente accident du travail | D17: 1
B18: 4 – Ancien combattant | C18: 102 | D18: 63 | E18: 52 | F18: 3 | G18: 1 | I18: 3 | J18: 2 | K18: 2 | L18: 1 | M18: 1 | O18: -0.5 | P18: 0
B19: 5 – Retraité ou pensionné | C19: 4 | D19: 18 | E19: 13 | F19: 9 | G19: 12 | H19: 10 | I19: 1
B20: 6 – Motifs divers | C20: 2 | D20: 8 | E20: 5 | F20: 4 | G20: 1 | H20: 131 | I20: 183 | J20: 145 | K20: 112 | L20: 137 | M20: 171 | O20: 0.2232142857 | P20: 0.2481751825
A21: Total D. Divers | C21: 255 | D21: 236 | E21: 149 | F21: 99 | G21: 80 | H21: 216 | I21: 282 | J21: 235 | K21: 184 | L21: 219 | M21: 250 | O21: 0.1902173913 | P21: 0.1415525114
A22: E. Humanitaire | B22: 1 – Réfugié et apatride | C22: 11 | D22: 7 | E22: 7 | F22: 5 | G22: 2 | H22: 8 | I22: 7 | J22: 8 | K22: 2 | L22: 5 | M22: 10 | O22: 1.5 | P22: 1
B23: 2 – Asile territorial/protection subsidiaire | C23: 3 | F23: 1
B24: 3 – Étranger malade | C24: 8 | D24: 5 | E24: 5 | F24: 4 | G24: 7 | H24: 12 | I24: 14 | J24: 5 | K24: 3 | L24: 2 | M24: 1 | O24: -0.3333333333 | P24: -0.5
B25: 4 – Victime de la traite des êtres humains | D25: 4 | E25: 2 | F25: 4 | G25: 1 | H25: 2 | I25: 3 | J25: 1 | L25: 2 | M25: 2 | P25: 0
A26: Total E. Humanitaire | C26: 22 | D26: 16 | E26: 14 | F26: 14 | G26: 10 | H26: 22 | I26: 24 | J26: 14 | K26: 5 | L26: 9 | M26: 13 | O26: 0.8 | P26: 0.4444444444
A27: Total | C27: 9576 | D27: 9568 | E27: 6715 | F27: 7448 | G27: 7661 | H27: 9261 | I27: 9038 | J27: 2651 | K27: 1673 | L27: 1923 | M27: 1910 | O27: 0.1494321578 | P27: -0.006760270411
B30: 2004, Chypre, l'Estonie, la Hongrie, la Lettonie, la Lituanie, Malte, la Pologne, la République tchèque, la Slovaquie et la Slovénie
B31: Puis, le 1er janvier 2007, la Bulgarie et la Roumanie ont rejoint l'UE, suivies en 2013 par la Croatie
B32: 2014 Croatie

Sheet 1er titre par motifs et top NAT
G1: I-2-5 | K1: Premiers titres pays tiers-métro par motifs
A2: Economiques 2008 | C2: Economiques 2009 | E2: Economiques 2010 | G2: Economiques 2011 | I2: Economiques 2012 | K2: Economiques 2013 | M2: Economiques 2014 | O2: Economiques 2015 | Q2: Economiques 2016 | S2: Economiques 2017
A3: Maroc | B3: 5031 | C3: Maroc | D3: 2364 | E3: Etats-Unis d'Amérique | F3: 2323 | G3: Etats-Unis d'Amérique | H3: 2407 | I3: Etats-Unis d'Amérique | J3: 2057 | K3: Etats-Unis d'Amérique | L3: 2138 | M3: Etats-Unis d'Amérique | N3: 2050 | O3: Maroc | P3: 2301 | Q3: Maroc | R3: 2695 | S3: Maroc | T3: 3546
A4: Etats-Unis d'Amérique | B4: 2088 | C4: Mali | D4: 2124 | E4: Maroc | F4: 1610 | G4: Mali | H4: 1700 | I4: Maroc | J4: 1604 | K4: Maroc | L4: 1744 | M4: Maroc | N4: 1933 | O4: Etats-Unis d'Amérique | P4: 2097 | Q4: Tunisie | R4: 2325 | S4: Tunisie | T4: 3458
A5: Mali | B5: 1434 | C5: Etats-Unis d'Amérique | D5: 2097 | E5: Mali | F5: 1592 | G5: Maroc | H5: 1635 | I5: Tunisie | J5: 1250 | K5: Tunisie | L5: 1329 | M5: Tunisie | N5: 1441 | O5: Tunisie | P5: 1716 | Q5: Etats-Unis d'Amérique | R5: 2173 | S5: Etats-Unis d'Amérique | T5: 2142
A6: Inde | B6: 1039 | C6: Tunisie | D6: 1755 | E6: Tunisie | F6: 1398 | G6: Tunisie | H6: 1403 | I6: Inde | J6: 1201 | K6: Inde | L6: 1147 | M6: Inde | N6: 1194 | O6: Inde | P6: 1262 | Q6: Inde | R6: 1501 | S6: Inde | T6: 1964
A7: Chine (Hong-Kong inclus) | B7: 1020 | C7: Chine (Hong-Kong inclus) | D7: 1158 | E7: Chine (Hong-Kong inclus) | F7: 1165 | G7: Inde | H7: 1058 | I7: Chine (Hong-Kong inclus) | J7: 935 | K7: Chine (Hong-Kong inclus) | L7: 951 | M7: Chine (Hong-Kong inclus) | N7: 1083 | O7: Chine (Hong-Kong inclus) | P7: 1107 | Q7: Chine (Hong-Kong inclus) | R7: 1146 | S7: Chine (Hong-Kong inclus) | T7: 1314
A8: Tunisie | B8: 937 | C8: Inde | D8: 932 | E8: Inde | F8: 994 | G8: Chine (Hong-Kong inclus) | H8: 1026 | I8: Mali | J8: 685 | K8: Mali | L8: 781 | M8: Mali | N8: 874 | O8: Algérie | P8: 1050 | Q8: Algérie | R8: 952 | S8: Bangladesh | T8: 1018
A9: Turquie | B9: 854 | C9: Algérie | D9: 838 | E9: Algérie | F9: 704 | G9: Japon | H9: 725 | I9: Canada | J9: 680 | K9: Algérie | L9: 752 | M9: Brésil | N9: 755 | O9: Brésil | P9: 793 | Q9: Bangladesh | R9: 900 | S9: Brésil | T9: 983
A10: Canada | B10: 775 | C10: Japon | D10: 731 | E10: Japon | F10: 664 | G10: Canada | H10: 676 | I10: Japon | J10: 651 | K10: Japon | L10: 695 | M10: Algérie | N10: 747 | O10: Mali | P10: 754 | Q10: Mali | R10: 887 | S10: Mali | T10: 930
A11: Algérie | B11: 758 | C11: Turquie | D11: 674 | E11: Canada | F11: 652 | G11: Algérie | H11: 497 | I11: Brésil | J11: 529 | K11: Canada | L11: 613 | M11: Japon | N11: 743 | O11: Japon | P11: 733 | Q11: Japon | R11: 758 | S11: Algérie | T11: 911
A12: Japon | B12: 753 | C12: Canada | D12: 631 | E12: Brésil | F12: 481 | G12: Brésil | H12: 465 | I12: Algérie | J12: 499 | K12: Brésil | L12: 584 | M12: Canada | N12: 663 | O12: Bangladesh | P12: 644 | Q12: Brésil | R12: 682 | S12: Sénégal | T12: 815
B13: 0.6879449232 | D13: 0.6591032945 | F13: 0.633643326 | H13: 0.6499943927 | J13: 0.6301754824 | L13: 0.6030337079 | N13: 0.6026556104 | P13: 0.6038879193 | R13: 0.6099991298 | T13: 0.6277702231
A14: Total 2008 | B14: 21352 | C14: Total 2009 | D14: 20185 | E14: Total 2010 | F14: 18280 | G14: Total 2011 | H14: 17834 | I14: Total 2012 | J14: 16013 | K14: Total 2013 | L14: 17800 | M14: Total 2014 | N14: 19054 | O14: Total 2015 | P14: 20628 | Q14: Total 2016 | R14: 22982 | S14: Total 2017 | T14: 27209
A16: Familiaux 2008 | C16: Familiaux 2009 | E16: Familiaux 2010 | G16: Familiaux 2011 | I16: Familiaux 2012 | K16: Familiaux 2013 | M16: Familiaux 2014 | O16: Familiaux 2015 | Q16: Familiaux 2016 | S16: Familiaux 2017
A17: Algérie | B17: 18445 | C17: Algérie | D17: 17778 | E17: Algérie | F17: 16500 | G17: Algérie | H17: 16794 | I17: Algérie | J17: 18796 | K17: Algérie | L17: 18813 | M17: Algérie | N17: 18813 | O17: Algérie | P17: 18860 | Q17: Algérie | R17: 18100 | S17: Algérie | T17: 18582
A18: Maroc | B18: 16551 | C18: Maroc | D18: 16135 | E18: Maroc | F18: 15237 | G18: Maroc | H18: 13798 | I18: Maroc | J18: 14444 | K18: Maroc | L18: 14855 | M18: Maroc | N18: 14676 | O18: Maroc | P18: 14881 | Q18: Maroc | R18: 14907 | S18: Maroc | T18: 13990
A19: Tunisie | B19: 6401 | C19: Tunisie | D19: 7262 | E19: Tunisie | F19: 8012 | G19: Tunisie | H19: 7429 | I19: Tunisie | J19: 8286 | K19: Tunisie | L19: 8812 | M19: Tunisie | N19: 8760 | O19: Tunisie | P19: 8256 | Q19: Tunisie | R19: 8333 | S19: Tunisie | T19: 7634
A20: Turquie | B20: 5447 | C20: Turquie | D20: 4920 | E20: Turquie | F20: 4114 | G20: Turquie | H20: 4081 | I20: Turquie | J20: 4373 | K20: Turquie | L20: 4417 | M20: Turquie | N20: 3631 | O20: Turquie | P20: 3366 | Q20: Turquie | R20: 3291 | S20: Turquie | T20: 3098
A21: Cameroun | B21: 2508 | C21: Cameroun | D21: 2644 | E21: Sénégal | F21: 2471 | G21: Sénégal | H21: 2503 | I21: Chine (Hong-Kong inclus) | J21: 2803 | K21: Chine (Hong-Kong inclus) | L21: 3862 | M21: Côte d'Ivoire | N21: 2860 | O21: Sénégal | P21: 2712 | Q21: Sénégal | R21: 2712 | S21: Sénégal | T21: 2866
A22: Côte d'Ivoire | B22: 2314 | C22: Mali | D22: 2523 | E22: Chine (Hong-Kong inclus) | F22: 2394 | G22: Chine (Hong-Kong inclus) | H22: 2474 | I22: Sénégal | J22: 2613 | K22: Sénégal | L22: 2859 | M22: Chine (Hong-Kong inclus) | N22: 2749 | O22: Côte d'Ivoire | P22: 2622 | Q22: Côte d'Ivoire | R22: 2654 | S22: Côte d'Ivoire | T22: 2797
A23: Mali | B23: 2201 | C23: Sénégal | D23: 2500 | E23: Cameroun | F23: 2364 | G23: Mali | H23: 2183 | I23: Cameroun | J23: 2318 | K23: Mali | L23: 2464 | M23: Sénégal | N23: 2665 | O23: Chine (Hong-Kong inclus) | P23: 2447 | Q23: Chine (Hong-Kong inclus) | R23: 2368 | S23: Cameroun | T23: 2417
A24: Chine (Hong-Kong inclus) | B24: 2097 | C24: Côte d'Ivoire | D24: 2353 | E24: Mali | F24: 2351 | G24: Cameroun | H24: 2162 | I24: Côte d'Ivoire | J24: 2271 | K24: Côte d'Ivoire | L24: 2457 | M24: Cameroun | N24: 2453 | O24: Cameroun | P24: 2186 | Q24: Cameroun | R24: 2082 | S24: Chine (Hong-Kong inclus) | T24: 1797
A25: Sénégal | B25: 2042 | C25: Chine (Hong-Kong inclus) | D25: 2247 | E25: Côte d'Ivoire | F25: 2154 | G25: Côte d'Ivoire | H25: 2103 | I25: Mali | J25: 2166 | K25: Cameroun | L25: 2321 | M25: Mali | N25: 2371 | O25: Mali | P25: 2071 | Q25: Mali | R25: 2063 | S25: Congo, République démocratique du | T25: 1763
A26: Congo, République démocratique du | B26: 1757 | C26: Congo, République démocratique du | D26: 1604 | E26: Haïti | F26: 1814 | G26: Congo, République démocratique du | H26: 1690 | I26: Congo, République démocratique du | J26: 1761 | K26: Congo, République démocratique du | L26: 2030 | M26: Congo, République démocratique du | N26: 2090 | O26: Congo, République démocratique du | P26: 1944 | Q26: Congo, République démocratique du | R26: 1866 | S26: Mali | T26: 1746
B27: 0.716024681 | D27: 0.6995975034 | F27: 0.6901853766 | H27: 0.6802468832 | J27: 0.6863714581 | L27: 0.6749737051 | N27: 0.6614388146 | P27: 0.6585620277 | R27: 0.6549975315 | T27: 0.650793833
A28: Total 2008 | B28: 83465 | C28: Total 2009 | D28: 85715 | E28: Total 2010 | F28: 83182 | G28: Total 2011 | H28: 81172 | I28: Total 2012 | J28: 87170 | K28: Total 2013 | L28: 93174 | M28: Total 2014 | N28: 92326 | O28: Total 2015 | P28: 90113 | Q28: Total 2016 | R28: 89124 | S28: Total 2017 | T28: 87109
A30: Etudiant et stagiaire 2008 | C30: Etudiant et stagiaire 2009 | E30: Etudiant et stagiaire 2010 | G30: Etudiant et stagiaire 2011 | I30: Etudiant et stagiaire 2012 | K30: Etudiant et stagiaire 2013 | M30: Etudiant et stagiaire 2014 | O30: Etudiant et stagiaire 2015 | Q30: Etudiant et stagiaire 2016 | S30: Etudiant et stagiaire 2017
A31: Chine (Hong-Kong inclus) | B31: 10411 | C31: Chine (Hong-Kong inclus) | D31: 10625 | E31: Chine (Hong-Kong inclus) | F31: 10085 | G31: Chine (Hong-Kong inclus) | H31: 10054 | I31: Chine (Hong-Kong inclus) | J31: 10145 | K31: Chine (Hong-Kong inclus) | L31: 10456 | M31: Chine (Hong-Kong inclus) | N31: 10313 | O31: Chine (Hong-Kong inclus) | P31: 10137 | Q31: Chine (Hong-Kong inclus) | R31: 10944 | S31: Maroc | T31: 10460
A32: Maroc | B32: 4922 | C32: Maroc | D32: 5149 | E32: Maroc | F32: 5957 | G32: Maroc | H32: 6966 | I32: Maroc | J32: 6094 | K32: Maroc | L32: 6902 | M32: Maroc | N32: 7776 | O32: Maroc | P32: 8231 | Q32: Maroc | R32: 8533 | S32: Chine (Hong-Kong inclus) | T32: 10249
A33: Algérie | B33: 4095 | C33: Algérie | D33: 3952 | E33: Etats-Unis d'Amérique | F33: 5236 | G33: Etats-Unis d'Amérique | H33: 5530 | I33: Etats-Unis d'Amérique | J33: 3803 | K33: Etats-Unis d'Amérique | L33: 3295 | M33: Algérie | N33: 3442 | O33: Algérie | P33: 5070 | Q33: Algérie | R33: 6891 | S33: Algérie | T33: 9031
A34: Tunisie | B34: 2536 | C34: Etats-Unis d'Amérique | D34: 3531 | E34: Algérie | F34: 4649 | G34: Algérie | H34: 4174 | I34: Algérie | J34: 3721 | K34: Algérie | L34: 3247 | M34: Tunisie | N34: 3328 | O34: Tunisie | P34: 3576 | Q34: Tunisie | R34: 4004 | S34: Tunisie | T34: 4417
A35: Etats-Unis d'Amérique | B35: 2309 | C35: Tunisie | D35: 2815 | E35: Tunisie | F35: 2806 | G35: Tunisie | H35: 2678 | I35: Brésil | J35: 2665 | K35: Brésil | L35: 2909 | M35: Brésil | N35: 2890 | O35: Brésil | P35: 2820 | Q35: Corée, République de | R35: 2648 | S35: Sénégal | T35: 3484
A36: Brésil | B36: 1850 | C36: Brésil | D36: 2063 | E36: Brésil | F36: 2555 | G36: Brésil | H36: 2675 | I36: Tunisie | J36: 2228 | K36: Tunisie | L36: 2822 | M36: Etats-Unis d'Amérique | N36: 2843 | O36: Etats-Unis d'Amérique | P36: 2696 | Q36: Etats-Unis d'Amérique | R36: 2392 | S36: Inde | T36: 2508
A37: Japon | B37: 1636 | C37: Sénégal | D37: 1943 | E37: Mexique | F37: 1947 | G37: Mexique | H37: 1996 | I37: Corée, République de | J37: 1931 | K37: Corée, République de | L37: 2217 | M37: Corée, République de | N37: 2529 | O37: Corée, République de | P37: 2686 | Q37: Sénégal | R37: 2338 | S37: Corée, République de | T37: 2318
A38: Sénégal | B38: 1555 | C38: Japon | D38: 1832 | E38: Japon | F38: 1782 | G38: Corée, République de | H38: 1942 | I38: Japon | J38: 1543 | K38: Sénégal | L38: 1890 | M38: Inde | N38: 1823 | O38: Sénégal | P38: 1989 | Q38: Inde | R38: 2022 | S38: Côte d'Ivoire | T38: 2182
A39: Corée, République de | B39: 1373 | C39: Mexique | D39: 1471 | E39: Corée, République de | F39: 1778 | G39: Sénégal | H39: 1881 | I39: Inde | J39: 1421 | K39: Japon | L39: 1608 | M39: Sénégal | N39: 1634 | O39: Inde | P39: 1904 | Q39: Brésil | R39: 1833 | S39: Etats-Unis d'Amérique | T39: 2125
A40: Mexique | B40: 1180 | C40: Corée, République de | D40: 1452 | E40: Sénégal | F40: 1732 | G40: Japon | H40: 1765 | I40: Mexique | J40: 1398 | K40: Mexique | L40: 1490 | M40: Japon | N40: 1564 | O40: Mexique | P40: 1610 | Q40: Côte d'Ivoire | R40: 1825 | S40: Brésil | T40: 1930
B41: 0.6109119491 | D41: 0.5945618407 | F41: 0.5901717192 | H41: 0.61084586 | J41: 0.5937951306 | L41: 0.586420441 | N41: 0.586836113 | P41: 0.5815089328 | R41: 0.5897289664 | T41: 0.6206070491
A42: Total 2008 | B42: 52163 | C42: Total 2009 | D42: 58586 | E42: Total 2010 | F42: 65281 | G42: Total 2011 | H42: 64928 | I42: Total 2012 | J42: 58857 | K42: Total 2013 | L42: 62815 | M42: Total 2014 | N42: 64996 | O42: Total 2015 | P42: 70023 | Q42: Total 2016 | R42: 73644 | S42: Total 2017 | T42: 78478
A44: Humanitaires 2008 | C44: Humanitaires 2009 | E44: Humanitaires 2010 | G44: Humanitaires 2011 | I44: Humanitaires 2012 | K44: Humanitaires 2013 | M44: Humanitaires 2014 | O44: Humanitaires 2015 | Q44: Humanitaires 2016 | S44: Humanitaires 2017
A45: Congo, République démocratique du | B45: 1482 | C45: Sri Lanka | D45: 2354 | E45: Sri Lanka | F45: 2222 | G45: Sri Lanka | H45: 1810 | I45: Sri Lanka | J45: 1765 | K45: Congo, République démocratique du | L45: 1575 | M45: Congo, République démocratique du | N45: 1594 | O45: République arabe syrienne | P45: 1906 | Q45: République arabe syrienne | R45: 3098 | S45: Afghanistan | T45: 4781
A46: Sri Lanka | B46: 1469 | C46: Congo, République démocratique du | D46: 1399 | E46: Fédération de Russie | F46: 1340 | G46: Fédération de Russie | H46: 1414 | I46: Congo, République démocratique du | J46: 1416 | K46: Sri Lanka | L46: 1523 | M46: Sri Lanka | N46: 1579 | O46: Irak | P46: 1631 | Q46: Soudan | R46: 1959 | S46: Soudan | T46: 4001
A47: Fédération de Russie | B47: 1199 | C47: Fédération de Russie | D47: 1270 | E47: Congo, République démocratique du | F47: 1310 | G47: Congo, République démocratique du | H47: 1318 | I47: Fédération de Russie | J47: 1344 | K47: Fédération de Russie | L47: 1215 | M47: Fédération de Russie | N47: 1358 | O47: Congo, République démocratique du | P47: 1584 | Q47: Congo, République démocratique du | R47: 1945 | S47: République arabe syrienne | T47: 3838
A48: Turquie | B48: 1013 | C48: Turquie | D48: 971 | E48: Turquie | F48: 873 | G48: Kosovo | H48: 1046 | I48: Kosovo | J48: 1018 | K48: Bangladesh | L48: 776 | M48: République arabe syrienne | N48: 1054 | O48: Sri Lanka | P48: 1381 | Q48: Fédération de Russie | R48: 1538 | S48: Congo, République démocratique du | T48: 1908
A49: Algérie | B49: 950 | C49: Mali | D49: 891 | E49: Algérie | F49: 868 | G49: Algérie | H49: 760 | I49: Arménie | J49: 799 | K49: Guinée | L49: 714 | M49: Bangladesh | N49: 917 | O49: Fédération de Russie | P49: 1205 | Q49: Sri Lanka | R49: 1481 | S49: Irak | T49: 1465
A50: Mali | B50: 939 | C50: Algérie | D50: 868 | E50: Mali | F50: 781 | G50: Arménie | H50: 705 | I50: Algérie | J50: 787 | K50: Arménie | L50: 705 | M50: Guinée | N50: 903 | O50: Guinée | P50: 1034 | Q50: Afghanistan | R50: 1396 | S50: Fédération de Russie | T50: 1365
A51: Arménie | B51: 647 | C51: Arménie | D51: 773 | E51: Kosovo | F51: 693 | G51: Guinée | H51: 678 | I51: Guinée | J51: 749 | K51: Algérie | L51: 700 | M51: Algérie | N51: 795 | O51: Bangladesh | P51: 849 | Q51: Irak | R51: 1281 | S51: Guinée | T51: 1121
A52: Serbie | B52: 599 | C52: Congo, République du | D52: 629 | E52: Guinée | F52: 684 | G52: Turquie | H52: 625 | I52: Turquie | J52: 655 | K52: Afghanistan | L52: 583 | M52: Kosovo | N52: 684 | O52: Algérie | P52: 812 | Q52: Guinée | R52: 1171 | S52: Sri Lanka | T52: 1112
A53: Congo, République du | B53: 587 | C53: Guinée | D53: 619 | E53: Arménie | F53: 653 | G53: Mali | H53: 546 | I53: Bangladesh | J53: 580 | K53: Turquie | L53: 574 | M53: Arménie | N53: 671 | O53: Kosovo | P53: 790 | Q53: Bangladesh | R53: 1107 | S53: Bangladesh | T53: 1054
A54: Guinée | B54: 587 | C54: Kosovo | D54: 583 | E54: Congo, République du | F54: 566 | G54: Congo, République du | H54: 513 | I54: Afghanistan | J54: 490 | K54: Kosovo | L54: 569 | M54: Côte d'Ivoire | N54: 644 | O54: Soudan | P54: 725 | Q54: Kosovo | R54: 1021 | S54: Kosovo | T54: 925
B55: 0.5492288067 | D55: 0.5573973414 | F55: 0.548298573 | H55: 0.5383999543 | J55: 0.5203185956 | L55: 0.4986604153 | N55: 0.4898184612 | P55: 0.5203248483 | R55: 0.535697542 | T55: 0.6058308055
A56: Total 2008 | B56: 17246 | C56: Total 2009 | D56: 18581 | E56: Total 2010 | F56: 18220 | G56: Total 2011 | H56: 17487 | I56: Total 2012 | J56: 18456 | K56: Total 2013 | L56: 17916 | M56: Total 2014 | N56: 20822 | O56: Total 2015 | P56: 22903 | Q56: Total 2016 | R56: 29862 | S56: Total 2017 | T56: 35604
A58: Tous motifs 2008 | C58: Tous motifs 2009 | E58: Tous motifs 2010 | G58: Tous motifs 2011 | I58: Tous motifs 2012 | K58: Tous motifs 2013 | M58: Tous motifs 2014 | O58: Tous motifs 2015 | Q58: Tous motifs 2016 | S58: Tous motifs 2017
A59: Maroc | B59: 27838 | C59: Algérie | D59: 25452 | E59: Algérie | F59: 24420 | G59: Maroc | H59: 23698 | I59: Algérie | J59: 25427 | K59: Algérie | L59: 25000 | M59: Maroc | N59: 25811 | O59: Algérie | P59: 27478 | Q59: Algérie | R59: 28696 | S59: Algérie | T59: 30847
A60: Algérie | B60: 26312 | C60: Maroc | D60: 25174 | E60: Maroc | F60: 24260 | G60: Algérie | H60: 23599 | I60: Maroc | J60: 23470 | K60: Maroc | L60: 24835 | M60: Algérie | N60: 25421 | O60: Maroc | P60: 26634 | Q60: Maroc | R60: 27149 | S60: Maroc | T60: 29233
A61: Chine (Hong-Kong inclus) | B61: 14048 | C61: Chine (Hong-Kong inclus) | D61: 14689 | E61: Chine (Hong-Kong inclus) | F61: 14430 | G61: Chine (Hong-Kong inclus) | H61: 14426 | I61: Chine (Hong-Kong inclus) | J61: 14899 | K61: Chine (Hong-Kong inclus) | L61: 16326 | M61: Chine (Hong-Kong inclus) | N61: 15412 | O61: Chine (Hong-Kong inclus) | P61: 14962 | Q61: Chine (Hong-Kong inclus) | R61: 15973 | S61: Tunisie | T61: 16074
A62: Tunisie | B62: 10267 | C62: Tunisie | D62: 12302 | E62: Tunisie | F62: 12648 | G62: Tunisie | H62: 11935 | I62: Tunisie | J62: 12231 | K62: Tunisie | L62: 13435 | M62: Tunisie | N62: 14114 | O62: Tunisie | P62: 14081 | Q62: Tunisie | R62: 15208 | S62: Chine (Hong-Kong inclus) | T62: 14787
A63: Turquie | B63: 8158 | C63: Turquie | D63: 7584 | E63: Etats-Unis d'Amérique | F63: 9546 | G63: Etats-Unis d'Amérique | H63: 10026 | I63: Etats-Unis d'Amérique | J63: 7895 | K63: Etats-Unis d'Amérique | L63: 7524 | M63: Etats-Unis d'Amérique | N63: 7123 | O63: Etats-Unis d'Amérique | P63: 6957 | Q63: Etats-Unis d'Amérique | R63: 6788 | S63: Sénégal | T63: 7610
A64: Etats-Unis d'Amérique | B64: 6084 | C64: Etats-Unis d'Amérique | D64: 7538 | E64: Turquie | F64: 6690 | G64: Turquie | H64: 6451 | I64: Turquie | J64: 6689 | K64: Turquie | L64: 6964 | M64: Turquie | N64: 6306 | O64: Turquie | P64: 5965 | Q64: Sénégal | R64: 6151 | S64: Etats-Unis d'Amérique | T64: 6387
A65: Mali | B65: 5181 | C65: Mali | D65: 6126 | E65: Mali | F65: 5502 | G65: Mali | H65: 5171 | I65: Fédération de Russie | J65: 4825 | K65: Sénégal | L65: 5567 | M65: Brésil | N65: 5315 | O65: Sénégal | P65: 5666 | Q65: Turquie | R65: 5957 | S65: Côte d'Ivoire | T65: 6345
A66: Cameroun | B66: 4449 | C66: Sénégal | D66: 5244 | E66: Sénégal | F66: 5065 | G66: Sénégal | H66: 5135 | I66: Brésil | J66: 4763 | K66: Fédération de Russie | L66: 5053 | M66: Côte d'Ivoire | N66: 5290 | O66: Brésil | P66: 5391 | Q66: Côte d'Ivoire | R66: 5661 | S66: Inde | T66: 5811
A67: Sénégal | B67: 4192 | C67: Cameroun | D67: 4712 | E67: Fédération de Russie | F67: 4838 | G67: Fédération de Russie | H67: 4903 | I67: Sénégal | J67: 4515 | K67: Brésil | L67: 5014 | M67: Sénégal | N67: 5278 | O67: Côte d'Ivoire | P67: 5222 | Q67: Fédération de Russie | R67: 5101 | S67: Turquie | T67: 5806
A68: Côte d'Ivoire | B68: 3851 | C68: Fédération de Russie | D68: 4444 | E68: Brésil | F68: 4559 | G68: Brésil | H68: 4589 | I68: Congo, République démocratique du | J68: 4187 | K68: Congo, République démocratique du | L68: 4551 | M68: Fédération de Russie | N68: 5223 | O68: Fédération de Russie | P68: 4922 | Q68: Congo, République démocratique du | R68: 5057 | S68: Fédération de Russie | T68: 5013
B69: 0.6002403572 | D69: 0.5826089193 | F69: 0.5696593482 | H69: 0.5694417106 | J69: 0.5639032726 | L69: 0.5563432055 | N69: 0.5465677444 | P69: 0.5391273968 | R69: 0.5284975668 | T69: 0.5271176313
A70: Total 2008 | B70: 183893 | C70: Total 2009 | D70: 194410 | E70: Total 2010 | F70: 196535 | G70: Total 2011 | H70: 193054 | I70: Total 2012 | J70: 193120 | K70: Total 2013 | L70: 205393 | M70: Total 2014 | N70: 210940 | O70: Total 2015 | P70: 217533 | Q70: Total 2016 | R70: 230353 | S70: Total 2017 | T70: 242665

Sheet familles de français
A1: familles de français
A2: France métropolitaine
B3: 2007 | C3: 2008 | D3: 2009 | E3: 2010 | F3: 2011 | G3: 2012 | H3: 2013 | I3: 2014 | J3: 2015 | K3: 2016 | L3: 2017 (prov)
A4: 1 – Conjoints de Français | B4: 38040 | C4: 37236 | D4: 41799 | E4: 38178 | F4: 38153 | G4: 40400 | H4: 38831 | I4: 39308 | J4: 39639 | K4: 38946 | L4: 37675
A5: dont visas VLS-TS | D5: 13675 | E5: 24643 | F5: 24458 | G5: 24669 | H5: 23766 | I5: 23809 | J5: 23809 | K5: 23925 | L5: 21251
A6: 2 – Parents d’enfants français | B6: 10988 | C6: 10546 | D6: 10153 | E6: 10363 | F6: 9609 | G6: 10297 | H6: 9987 | I6: 10186 | J6: 9247 | K6: 9361 | L6: 9567
A7: 3 – Ascendants étrangers et enfants étrangers de Français | B7: 739 | C7: 1051 | D7: 1218 | E7: 1297 | F7: 1190 | G7: 1373 | H7: 1427 | I7: 1426 | J7: 1257 | K7: 1252 | L7: 1362
A8: Total | B8: 49767 | C8: 48833 | D8: 53170 | E8: 49838 | F8: 48952 | G8: 52070 | H8: 50245 | I8: 50920 | J8: 50143 | K8: 49559 | L8: 48604
A13: Premiers titres délivrés pour motif familial : données détaillées
B16: 2013 | C16: 2014 | D16: 2015 | E16: 2016 | F16: 2017 (prov) | G16: 2017/ 2016
A18: 1. Famille de français | B18: 50245 | C18: 50920 | D18: 50143 | E18: 49559 | F18: 48604 | G18: -0.01926996106
A19: a. Conjoints des Français | B19: 38831 | C19: 39308 | D19: 39639 | E19: 38946 | F19: 37675 | G19: -0.03263493042
A20: b. Ascendants étrangers et enfants étrangers de Français | B20: 1427 | C20: 1426 | D20: 1257 | E20: 1252 | F20: 1362 | G20: 0.08785942492
A21: c. Parents de Français | B21: 9987 | C21: 10186 | D21: 9247 | E21: 9361 | F21: 9567 | G21: 0.02200619592
A22: 2. Membres de famille | B22: 23127 | C22: 23099 | D22: 23786 | E22: 24152 | F22: 23168 | G22: -0.04074196754
A23: a. Regroupement familial | B23: 11282 | C23: 12121 | D23: 11545 | E23: 11005 | F23: 10656 | G23: -0.03171285779
A24: b. Membre de famille d’un ressortissant de l’UE | B24: 2731 | C24: 4375 | D24: 5151 | E24: 5252 | F24: 5726 | G24: 0.09025133283
A25: c. Membre de famille de titulaires de titres Compétence et talents, carte bleue européenne, salarié en mission, scientifique chercheur | B25: 2216 | C25: 1857 | D25: 2341 | E25: 2348 | F25: 2529 | G25: 0.07708688245
A26: d. Conjoint d’étranger en situation régulière | B26: 1943 | C26: 1816 | D26: 1925 | E26: 2193 | F26: 1562 | G26: -0.2877336981
A27: e. Parents d’enfants scolarisés | B27: 4955 | C27: 2930 | D27: 2824 | E27: 3354 | F27: 2695 | G27: -0.1964818128
A28: 3. Liens personnels et familiaux | B28: 20342 | C28: 18307 | D28: 16184 | E28: 15413 | F28: 15337 | G28: -0.004930902485
A29: a. Motifs humanitaires | B29: 6206 | C29: 5597 | D29: 4790 | E29: 4319 | F29: 3376 | G29: -0.2183375781
A30: b. Mineur devenu majeur | B30: 573 | C30: 648 | D30: 691 | E30: 881 | F30: 684 | G30: -0.2236095346
A31: c. Résidant en France depuis 10 ans ou 15 ans pour les étudiants | B31: 1573 | C31: 1120 | D31: 982 | E31: 929 | F31: 664 | G31: -0.2852529602
A32: d. Talent exceptionnel/service rendu à la collectivité | B32: 12 | C32: 6 | D32: 8 | E32: 6 | F32: 2 | G32: -0.6666666667
A33: e. Vie privée et familiale | B33: 11978 | C33: 10936 | D33: 9713 | E33: 9278 | F33: 10611 | G33: 0.1436732054
A34: TOTAL | B34: 93714 | C34: 92326 | D34: 90113 | E34: 89124 | F34: 87109 | G34: -0.02260894933
A35: Source : DGEF-DSED, AGDREF, métropole, pays tiers

Sheet CST TTS PAYS METRO
B2: Tous pays
C3: 2007 | D3: 2008 | E3: 2009 | F3: 2010 | G3: 2011 | H3: 2012 | I3: 2013 | J3: 2014 | K3: 2015 | L3: 2016 | M3: 2017 (prov) | N3: 2016 / 2017 | O3: % 2017
A4: A. Economique | B4: 1 - Compétences et talents | H4: 1
B5: 2 - Actif non salarié | C5: 388 | D5: 176 | E5: 56 | F5: 69 | G5: 68 | H5: 77 | I5: 74 | J5: 59 | K5: 67 | L5: 109 | M5: 193 | N5: 0.7706422018 | O5: 0.002810788768
B6: 3 - Scientifique | C6: 1558 | D6: 1912 | E6: 2057 | F6: 2062 | G6: 1955 | H6: 1410 | I6: 216 | J6: 231 | K6: 145 | L6: 104 | M6: 279 | N6: 1.682692308 | O6: 0.004063264593
B7: 4 - Artiste | C7: 282 | D7: 291 | E7: 201 | F7: 174 | G7: 168 | H7: 149 | I7: 144 | J7: 172 | K7: 191 | L7: 83 | N7: -1 | O7: 0
B8: 5 - Salarié | C8: 6427 | D8: 11817 | E8: 10795 | F8: 8174 | G8: 8050 | H8: 6630 | I8: 8078 | J8: 8796 | K8: 9263 | L8: 10007 | M8: 8377 | N8: -0.1628859798 | O8: 0.1219998835
B9: 6 - Saisonnier ou temporaire | C9: 3789 | D9: 7064 | E9: 2829 | F9: 1336 | G9: 1343 | H9: 1289 | I9: 1160 | J9: 1350 | K9: 1627 | L9: 1434 | M9: 382 | N9: -0.7336122734 | O9: 0.005563322847
A10: Total A. Economique | C10: 12444 | D10: 21260 | E10: 15938 | F10: 11815 | G10: 11584 | H10: 9556 | I10: 9672 | J10: 10608 | K10: 11293 | L10: 11737 | M10: 9231 | N10: -0.2135128227 | O10: 0.1344372597
A11: B. Familial | B11: 1 - Famille de Français | C11: 34340 | D11: 35352 | E11: 25898 | F11: 13428 | G11: 12378 | H11: 13235 | I11: 12864 | J11: 13215 | K11: 12042 | L11: 12037 | M11: 12727 | N11: 0.0573232533 | O11: 0.1853518583
B12: 2 - Membre de famille | C12: 5295 | D12: 4802 | E12: 4738 | F12: 4874 | G12: 4883 | H12: 5162 | I12: 10256 | J12: 8549 | K12: 8934 | L12: 8911 | M12: 6093 | N12: -0.3162383571 | O12: 0.08873645578
B13: 3 - Liens personnels et familiaux | C13: 15678 | D13: 14585 | E13: 14588 | F13: 15049 | G13: 14514 | H13: 15616 | I13: 17243 | J13: 15820 | K13: 13949 | L13: 13123 | M13: 13028 | N13: -0.007239198354 | O13: 0.1897355237
A14: Total B. Familial | C14: 55313 | D14: 54739 | E14: 45224 | F14: 33351 | G14: 31775 | H14: 34013 | I14: 40363 | J14: 37584 | K14: 34925 | L14: 34071 | M14: 31848 | N14: -0.06524610372 | O14: 0.4638238378
A15: C. Etudiants | C15: 43789 | D15: 48230 | E15: 14148 | F15: 6845 | G15: 6958 | H15: 6746 | I15: 6654 | J15: 6887 | K15: 6018 | L15: 6118 | M15: 6300 | N15: 0.02974828375 | O15: 0.09175113597
A16: D. Divers | B16: 1 - Visiteur | C16: 4920 | D16: 4122 | E16: 3181 | F16: 1410 | G16: 1122 | H16: 1125 | I16: 1015 | J16: 986 | K16: 874 | L16: 841 | M16: 705 | N16: -0.1617122473 | O16: 0.01026738902
B17: 2 - Etranger entré mineur | C17: 2665 | D17: 2615 | E17: 2858 | F17: 3160 | G17: 3387 | H17: 4080 | I17: 4280 | J17: 4576 | K17: 4783 | L17: 5063 | M17: 5970 | N17: 0.1791428007 | O17: 0.08694512408
B18: 3 - Rente accident du travail | C18: 8 | D18: 9 | E18: 15 | F18: 11 | G18: 9 | H18: 12 | I18: 8 | J18: 7 | K18: 4 | L18: 3 | M18: 7 | N18: 1.333333333 | O18: 0.0001019457066
B19: 6 - Motifs divers | G19: 1 | O19: 0
A20: Total D. Divers | C20: 7593 | D20: 6746 | E20: 6054 | F20: 4581 | G20: 4519 | H20: 5217 | I20: 5303 | J20: 5569 | K20: 5661 | L20: 5907 | M20: 6682 | N20: 0.1312002709 | O20: 0.09731445881
A21: E. Humanitaire | B21: 1 - Réfugié et apatride | C21: 56 | D21: 54 | E21: 61 | F21: 62 | G21: 44 | H21: 46 | I21: 50 | J21: 65 | K21: 61 | L21: 40 | M21: 56 | N21: 0.4 | O21: 0.000815565653
B22: 2 - Asile territorial/protection subsidiaire | C22: 457 | D22: 694 | E22: 1776 | F22: 1738 | G22: 1582 | H22: 1985 | I22: 1927 | J22: 2331 | K22: 2598 | L22: 5531 | M22: 10747 | N22: 0.9430482734 | O22: 0.156515787
B23: 3 - Etranger malade | C23: 4858 | D23: 4928 | E23: 5177 | F23: 5529 | G23: 5460 | H23: 5714 | I23: 5420 | J23: 6217 | K23: 5831 | L23: 6047 | M23: 3642 | N23: -0.3977178766 | O23: 0.05304089479
B24: 4 - Victime de la traite des êtres humains | D24: 22 | E24: 57 | F24: 67 | G24: 32 | H24: 34 | I24: 39 | J24: 61 | K24: 44 | L24: 71 | M24: 112 | N24: 0.5774647887 | O24: 0.001631131306
B25: 5 - Victime de violences conjugales | K25: 33 | L25: 46 | M25: 46 | O25: 0.0006699289293
A26: Total E. Humanitaire | C26: 5371 | D26: 5698 | E26: 7071 | F26: 7396 | G26: 7118 | H26: 7779 | I26: 7436 | J26: 8674 | K26: 8567 | L26: 11735 | M26: 14603 | N26: 0.2443971027 | O26: 0.2126733077
A27: Total | C27: 124510 | D27: 136673 | E27: 88435 | F27: 63988 | G27: 61954 | H27: 63311 | I27: 69428 | J27: 69322 | K27: 66464 | L27: 69568 | M27: 68664 | N27: -0.01299448022 | O27: 1
A29: Source : DSED

Sheet VLS TS
A1: I-2-7bis | B1: 1er titre par motifs et top NAT
A3: Type de titre regroupé bis | B3: VLS-TS | L3: PART
B4: Année | L4: 2015 | M4: 2016 | N4: 2017 | P4: évolution
B5: 2009 | C5: 2010 | D5: 2011 | E5: 2012 | F5: 2013 | G5: 2014 | H5: 2015 | I5: 2016 | J5: 2017 (Prov) | K5: 2017 / 2016 | L5: 0.0823703278 | M5: 0.08575060557 | N5: 0.1004826197 | P5: 2014-2015 | Q5: 2015-2016 | R5: 2016-2017
A6: A. Economique | B6: 3383 | C6: 5677 | D6: 5646 | E6: 5789 | F6: 7140 | G6: 7449 | H6: 8026 | I6: 8567 | J6: 10077 | K6: 0.1762577332 | L6: 0.2562963115 | M6: 0.2516865854 | N6: 0.2252757115 | P6: 0.07746006175 | Q6: 0.06740593073 | R6: 0.1762577332
A7: B. Familial | B7: 13675 | C7: 24643 | D7: 24458 | E7: 25089 | F7: 25037 | G7: 25099 | H7: 24973 | I7: 25145 | J7: 22592 | K7: -0.1015311195 | L7: 0.6042816971 | M7: 0.6035273157 | N7: 0.6250722932 | P7: -0.005020120324 | Q7: 0.006887438434 | R7: -0.1015311195
A8: C. Etudiants | B8: 40572 | C8: 53852 | D8: 53856 | E8: 48407 | F8: 52889 | G8: 54606 | H8: 58880 | I8: 60296 | J8: 62686 | K8: 0.03963778692 | L8: 0.05705166362 | M8: 0.05903549336 | N8: 0.04916937559 | P8: 0.0782697872 | Q8: 0.02404891304 | R8: 0.03963778692
A9: D. Divers | B9: 2230 | C9: 4345 | D9: 4853 | E9: 4887 | F9: 5337 | G9: 5465 | H9: 5559 | I9: 5898 | J9: 4931 | K9: -0.1639538827 | L9: 1 | M9: 1 | N9: 1 | P9: 0.01720036597 | Q9: 0.06098219104 | R9: -0.1639538827
A10: Total général | B10: 59860 | C10: 88517 | D10: 88813 | E10: 84172 | F10: 90403 | G10: 92619 | H10: 97438 | I10: 99906 | J10: 100286 | K10: 0.003803575361
A12: Metro-tous pays
A14: Somme de SommeDeTotal titres | C14: Année
A15: Redressé N1 | B15: Type de titre regroupé bis | C15: 2009 | D15: 2010 | E15: 2011 | F15: 2012 | G15: 2013 | H15: 2014 | I15: 2015 | J15: 2016 | K15: 2017 (provisoire)
A16: A. Economique | B16: CCT | C16: 368 | D16: 319 | E16: 289 | F16: 285 | G16: 251 | H16: 228 | I16: 220 | J16: 193
B17: CEE_et_EEE | C17: 6534 | D17: 7449 | E17: 7822 | F17: 9420 | G17: 2874
B18: CR | C18: 34 | D18: 36 | E18: 20 | F18: 25 | G18: 14 | H18: 11 | I18: 10 | J18: 14 | K18: 10
B19: CRA | C19: 837 | D19: 704 | E19: 497 | F19: 497 | G19: 752 | H19: 747 | I19: 1050 | J19: 950 | K19: 911
B20: CSP | I20: 14 | J20: 1491 | K20: 6955
B21: CST | C21: 15938 | D21: 11815 | E21: 11584 | F21: 9556 | G21: 9672 | H21: 10608 | I21: 11293 | J21: 11737 | K21: 9231
B22: UE | F22: 225 | G22: 5699 | H22: 3481 | I22: 3096 | J22: 3930 | K22: 4365
B23: VLS | C23: 3383 | D23: 5679 | E23: 5648 | F23: 5789 | G23: 7140 | H23: 7451 | I23: 8027 | J23: 8569 | K23: 10079
A24: Total A. Economique | C24: 27094 | D24: 26002 | E24: 25860 | F24: 25797 | G24: 26402 | H24: 22526 | I24: 23710 | J24: 26884 | K24: 31551
A25: B. Familial | B25: CEE_et_EEE | C25: 4296 | D25: 4610 | E25: 4562 | F25: 5399 | G25: 1524
B26: CR | C26: 7462 | D26: 6850 | E26: 6166 | F26: 6710 | G26: 6475 | H26: 6754 | I26: 6527 | J26: 6265 | K26: 6320
B27: CRA | C27: 17665 | D27: 16386 | E27: 16659 | F27: 18647 | G27: 18608 | H27: 18524 | I27: 18537 | J27: 17789 | K27: 18232
B28: CSP | I28: 3 | J28: 627 | K28: 2400
B29: CST | C29: 45224 | D29: 33351 | E29: 31775 | F29: 34013 | G29: 40363 | H29: 37584 | I29: 34925 | J29: 34071 | K29: 31848
B30: UE | F30: 157 | G30: 3967 | H30: 5268 | I30: 5777 | J30: 5875 | K30: 6385
B31: VLS | C31: 13676 | D31: 24644 | E31: 24459 | F31: 25093 | G31: 25038 | H31: 25102 | I31: 24975 | J31: 25150 | K31: 22594
A32: Total B. Familial | C32: 88323 | D32: 85841 | E32: 83621 | F32: 90019 | G32: 95975 | H32: 93232 | I32: 90744 | J32: 89777 | K32: 87779
A33: C. Etudiants | B33: CEE_et_EEE | C33: 492 | D33: 570 | E33: 610 | F33: 682 | G33: 139
B34: CR | C34: 21 | D34: 24 | E34: 30 | F34: 57 | G34: 63 | H34: 69 | I34: 64 | J34: 87 | K34: 68
B35: CRA | C35: 3952 | D35: 4649 | E35: 4174 | F35: 3723 | G35: 3247 | H35: 3442 | I35: 5070 | J35: 6893 | K35: 9031
B36: CSP | I36: 1 | J36: 263 | K36: 404
B37: CST | C37: 14148 | D37: 6845 | E37: 6958 | F37: 6746 | G37: 6654 | H37: 6887 | I37: 6018 | J37: 6118 | K37: 6300
B38: UE | F38: 23 | G38: 377 | H38: 88 | I38: 84 | J38: 110 | K38: 118
B39: VLS | C39: 40578 | D39: 53861 | E39: 53866 | F39: 48413 | G39: 52902 | H39: 54619 | I39: 58893 | J39: 60307 | K39: 62698
A40: Total C. Etudiants | C40: 59191 | D40: 65949 | E40: 65638 | F40: 59644 | G40: 63382 | H40: 65105 | I40: 70130 | J40: 73778 | K40: 78619
A41: D. Divers | B41: CEE_et_EEE | C41: 492 | D41: 362 | E41: 327 | F41: 340 | G41: 125
B42: CR | C42: 789 | D42: 638 | E42: 664 | F42: 662 | G42: 723 | H42: 741 | I42: 648 | J42: 884 | K42: 725
B43: CRA | C43: 2016 | D43: 1696 | E43: 1374 | F43: 1622 | G43: 1486 | H43: 1624 | I43: 1688 | J43: 1794 | K43: 1576
B44: CSP | J44: 15 | K44: 76
B45: CST | C45: 6054 | D45: 4581 | E45: 4519 | F45: 5217 | G45: 5303 | H45: 5569 | I45: 5661 | J45: 5907 | K45: 6682
B46: RETRAITE | C46: 316 | D46: 333 | E46: 233 | F46: 226 | G46: 298 | H46: 358 | I46: 320 | J46: 259 | K46: 283
B47: UE | F47: 177 | G47: 2206 | H47: 2880 | I47: 2120 | J47: 3119 | K47: 4108
B48: VLS | C48: 2230 | D48: 4346 | E48: 4853 | F48: 4888 | G48: 5338 | H48: 5467 | I48: 5560 | J48: 5900 | K48: 4932
A49: Total D. Divers | C49: 11897 | D49: 11956 | E49: 11970 | F49: 13132 | G49: 15479 | H49: 16639 | I49: 15997 | J49: 17878 | K49: 18382
A50: E. Humanitaire | B50: CR | C50: 10711 | D50: 10016 | E50: 9674 | F50: 9966 | G50: 9896 | H50: 11430 | I50: 13598 | J50: 17320 | K50: 20435
B51: CRA | C51: 814 | D51: 822 | E51: 705 | F51: 735 | G51: 609 | H51: 733 | I51: 742 | J51: 788 | K51: 510
B52: CSP | I52: 1 | J52: 29 | K52: 69
B53: CST | C53: 7071 | D53: 7396 | E53: 7118 | F53: 7779 | G53: 7436 | H53: 8674 | I53: 8567 | J53: 11735 | K53: 14603
A54: Total E. Humanitaire | C54: 18596 | D54: 18234 | E54: 17497 | F54: 18480 | G54: 17941 | H54: 20837 | I54: 22908 | J54: 29872 | K54: 35617
A55: Total général | C55: 205101 | D55: 207982 | E55: 204586 | F55: 207072 | G55: 219179 | H55: 218339 | I55: 223489 | J55: 238189 | K55: 251948

Sheet CR
C3: Année début de validité
A4: Référence réglementaire (libellé)2 | B4: Référence réglementaire (libellé) | C4: 2006 | D4: 2007 | E4: 2008 | F4: 2009 | G4: 2010 | H4: 2011 | I4: 2012 | J4: 2013 | K4: 2014 | L4: 2015 | M4: 2016 | N4: 2017
A5: CR hors plein droit | B5: CONJOINT ETRANGER DE FRANCAIS | C5: 15921 | D5: 10562 | E5: 19447 | F5: 21576 | G5: 25142 | H5: 28019 | I5: 27713 | J5: 26858 | K5: 29171 | L5: 28199 | M5: 28764 | N5: 29678
B6: ETRANGER PARENT D'ENFANT FRANCAIS | C6: 2659 | D6: 2014 | E6: 5899 | F6: 7541 | G6: 9144 | H6: 10026 | I6: 9593 | J6: 10092 | K6: 11357 | L6: 10970 | M6: 12136 | N6: 11358

Sheet RETRAITES
A1: I-2-9 | B1: familles de français
A3: Carte de retraité | B3: 2007 | C3: 2008 | D3: 2009 | E3: 2010 | F3: 2011 | G3: 2012 | H3: 2013 | I3: 2014 | J3: 2015 | K3: 2016 | L3: 2017 (prov)
A4: Total | B4: 305 | C4: 295 | D4: 316 | E4: 333 | F4: 233 | G4: 226 | H4: 298 | I4: 358 | J4: 320 | K4: 259 | L4: 283
A6: Source : AGDREF/DSED

Sheet CRA
A1: I-2-10 | B1: 1ER TITRES PAR TYPE
C3: 2007 | D3: 2008 | E3: 2009 | F3: 2010 | G3: 2011 | H3: 2012 | I3: 2013 | J3: 2014 | K3: 2015 | L3: 2016 | M3: 2017 (prov)
A4: A. Economique | B4: 2 - Actif non salarié | C4: 21 | D4: 76 | E4: 41 | F4: 40 | G4: 44 | H4: 86 | I4: 55 | J4: 67 | K4: 79 | L4: 49 | M4: 51
B5: 3 - Scientifique | C5: 36 | D5: 45 | E5: 201 | F5: 213 | G5: 129 | H5: 144 | I5: 189 | J5: 229 | K5: 477 | L5: 420 | M5: 203
B6: 4 - Artiste | C6: 3 | D6: 3 | E6: 1 | F6: 3 | G6: 9 | H6: 12 | I6: 2 | K6: 1 | L6: 3 | M6: 2
B7: 5 - Salarié | C7: 267 | D7: 603 | E7: 568 | F7: 438 | G7: 307 | H7: 248 | I7: 496 | J7: 433 | K7: 479 | L7: 469 | M7: 631
B8: 6 - Saisonnier ou temporaire | C8: 100 | D8: 31 | E8: 26 | F8: 10 | G8: 8 | H8: 7 | I8: 10 | J8: 18 | K8: 14 | L8: 9 | M8: 24
A9: Total A. Economique | C9: 427 | D9: 758 | E9: 837 | F9: 704 | G9: 497 | H9: 497 | I9: 752 | J9: 747 | K9: 1050 | L9: 950 | M9: 911
A10: B. Familial | B10: 1 - Famille de Français | C10: 12983 | D10: 11231 | E10: 11726 | F10: 10538 | G10: 10890 | H10: 12693 | I10: 12054 | J10: 12348 | K10: 12892 | L10: 12194 | M10: 13003
B11: 2 - Membre de famille | C11: 3847 | D11: 4301 | E11: 3100 | F11: 3183 | G11: 2833 | H11: 3013 | I11: 3430 | J11: 3679 | K11: 3408 | L11: 3358 | M11: 3072
B12: 3 - Liens personnels et familiaux | C12: 3328 | D12: 2817 | E12: 2839 | F12: 2665 | G12: 2936 | H12: 2941 | I12: 3124 | J12: 2497 | K12: 2237 | L12: 2237 | M12: 2157
A13: Total B. Familial | C13: 20158 | D13: 18349 | E13: 17665 | F13: 16386 | G13: 16659 | H13: 18647 | I13: 18608 | J13: 18524 | K13: 18537 | L13: 17789 | M13: 18232
A14: C. Etudiants | C14: 3077 | D14: 4095 | E14: 3952 | F14: 4649 | G14: 4174 | H14: 3723 | I14: 3247 | J14: 3442 | K14: 5070 | L14: 6893 | M14: 9031
A15: D. Divers | B15: 1 - Visiteur | C15: 365 | D15: 391 | E15: 458 | F15: 404 | G15: 325 | H15: 386 | I15: 367 | J15: 338 | K15: 314 | L15: 269 | M15: 304
B16: 2 - Etranger entré mineur | C16: 271 | D16: 407 | E16: 511 | F16: 547 | G16: 533 | H16: 686 | I16: 713 | J16: 804 | K16: 804 | L16: 750 | M16: 747
B17: 3 - Rente accident du travail | C17: 11 | D17: 48 | E17: 55 | F17: 49 | G17: 24 | H17: 15 | I17: 4 | J17: 5 | K17: 4 | L17: 3 | M17: 4
B18: 5 - Retraité ou pensionné | C18: 1340 | D18: 1102 | E18: 884 | F18: 573 | G18: 311 | H18: 347 | I18: 249 | J18: 308 | K18: 393 | L18: 574 | M18: 379
B19: 6 - Motifs divers | C19: 98 | D19: 114 | E19: 108 | F19: 123 | G19: 181 | H19: 188 | I19: 153 | J19: 169 | K19: 173 | L19: 198 | M19: 142
A20: Total D. Divers | C20: 2085 | D20: 2062 | E20: 2016 | F20: 1696 | G20: 1374 | H20: 1622 | I20: 1486 | J20: 1624 | K20: 1688 | L20: 1794 | M20: 1576
A21: E. Humanitaire | B21: 2 - Asile territorial/protection subsidiaire | C21: 66 | D21: 59 | E21: 21 | F21: 22 | G21: 36 | H21: 39 | I21: 29 | J21: 33 | K21: 16
B22: 3 - Etranger malade | C22: 822 | D22: 810 | E22: 793 | F22: 800 | G22: 669 | H22: 696 | I22: 580 | J22: 700 | K22: 726 | L22: 788 | M22: 510
A23: Total E. Humanitaire | C23: 888 | D23: 869 | E23: 814 | F23: 822 | G23: 705 | H23: 735 | I23: 609 | J23: 733 | K23: 742 | L23: 788 | M23: 510
A24: Total | C24: 26635 | D24: 26133 | E24: 25284 | F24: 24257 | G24: 23409 | H24: 25224 | I24: 24702 | J24: 25070 | K24: 27087 | L24: 28214 | M24: 30260
A26: Source : AGDREF/DSED

Sheet 1er titre UE détaillés
A1: I-2-11 | B1: 1er titre UE
C3: 2007 | D3: 2008 | E3: 2009 | F3: 2010 | G3: 2011 | H3: 2012 | I3: 2013 | J3: 2014 | K3: 2015 | L3: 2016 | M3: 2017 (prov)
A4: A. Economique | B4: 2 - Actif non salarié | C4: 1078 | D4: 1278 | E4: 1085 | F4: 1481 | G4: 1542 | H4: 1651 | I4: 1325 | J4: 263 | K4: 179 | L4: 158 | M4: 214
B5: 4 - Artiste | C5: 1
B6: 5 - Salarié | C6: 6737 | D6: 5936 | E6: 3786 | F6: 4010 | G6: 3762 | H6: 4669 | I6: 6323 | J6: 3218 | K6: 2915 | L6: 3770 | M6: 4146
B7: 6 - Saisonnier ou temporaire | C7: 212 | D7: 1136 | E7: 1663 | F7: 1958 | G7: 2518 | H7: 3325 | I7: 925 | K7: 2 | L7: 2 | M7: 5
A8: Total A. Economique | C8: 8028 | D8: 8350 | E8: 6534 | F8: 7449 | G8: 7822 | H8: 9645 | I8: 8573 | J8: 3481 | K8: 3096 | L8: 3930 | M8: 4365
A9: B. Familial | B9: 1 - Famille de Français | C9: 823 | D9: 635 | E9: 468 | F9: 475 | G9: 442 | H9: 456 | I9: 113
B10: 2 - Membre de famille | C10: 2768 | D10: 3951 | E10: 3827 | F10: 4134 | G10: 4117 | H10: 5098 | I10: 5378 | J10: 5268 | K10: 5777 | L10: 5875 | M10: 6385
B11: 3 - Liens personnels et familiaux | C11: 1 | E11: 1 | F11: 1 | G11: 3 | H11: 2
A12: Total B. Familial | C12: 3592 | D12: 4586 | E12: 4296 | F12: 4610 | G12: 4562 | H12: 5556 | I12: 5491 | J12: 5268 | K12: 5777 | L12: 5875 | M12: 6385
A13: C. Etudiants | C13: 1017 | D13: 619 | E13: 492 | F13: 570 | G13: 610 | H13: 705 | I13: 516 | J13: 88 | K13: 84 | L13: 110 | M13: 118
A14: D. Divers | B14: 1 - Visiteur | C14: 604 | D14: 432 | E14: 228 | F14: 235 | G14: 170 | H14: 166 | I14: 320 | J14: 348 | K14: 326 | L14: 600 | M14: 706
B15: 5 - Retraité ou pensionné | C15: 159 | D15: 319 | E15: 243 | F15: 113 | G15: 136 | H15: 139 | I15: 61
B16: 6 - Motifs divers | C16: 4 | D16: 15 | E16: 21 | F16: 14 | G16: 21 | H16: 212 | I16: 1950 | J16: 2532 | K16: 1794 | L16: 2519 | M16: 3402
A17: Total D. Divers | C17: 767 | D17: 766 | E17: 492 | F17: 362 | G17: 327 | H17: 517 | I17: 2331 | J17: 2880 | K17: 2120 | L17: 3119 | M17: 4108
A18: Total | C18: 13404 | D18: 14321 | E18: 11814 | F18: 12991 | G18: 13321 | H18: 16423 | I18: 16911 | J18: 11717 | K18: 11077 | L18: 13034 | M18: 14976
A20: Source : AGDREF/DSED

Sheet AES
A1: TITRE | B1: Entrée irrégulière
A6: Les volumes d'admission exceptionnelle au séjour des ressortissants TTS PAYS FE sont :
B7: 2008 | C7: 2009 | D7: 2010 | E7: 2011 | F7: 2012 | G7: 2013 | H7: 2014 | I7: 2015 | J7: 2016 | K7: 2017 (prov) | L7: Ecart 2016 / 2017
A8: Vie privée et familiale | B8: 17101 | C8: 15827 | D8: 17109 | E8: 18683 | F8: 21028 | G8: 30539 | H8: 26671 | I8: 23975 | J8: 23734 | K8: 23355 | L8: -379
A9: Salarié | B9: Na | C9: Na | D9: 515 | E9: 3024 | F9: 2259 | G9: 4408 | H9: 5224 | I9: 5311 | J9: 6449 | K9: 7214 | L9: 765
A10: Etudiants | B10: Na | C10: Na | D10: Na | E10: Na | F10: 7 | G10: 331 | H10: 349 | I10: 379 | J10: 457 | K10: 381 | L10: -76
A11: TOTAL | B11: 17101 | C11: 15827 | D11: 17624 | E11: 21707 | F11: 23294 | G11: 35278 | H11: 32244 | I11: 29665 | J11: 30640 | K11: 30950 | L11: 310
A12: Source : AGDREF/DSED

Sheet RP 2014 (hidden)
A1: Évolution de la population de 1999 à 2014
B4: Population aux recensements
B5: 1999 | C5: 2010 | D5: 2011 | E5: 2012 | F5: 2013 | G5: 2014 | J5: Evolution | O5: 2014
A6: Ain | B6: 515478 | C6: 597341 | D6: 603827 | E6: 612191 | F6: 619497 | G6: 626127 | J6: =(G6-F6)/F6 -> 0.010702231 | N6: Auvergne-Rhône-Alpes | O6: 7820966
A7: Aisne | B7: 535313 | C7: 540508 | D7: 541302 | E7: 540888 | F7: 540067 | G7: 539783 | J7: -0.0005258606802 | N7: Bourgogne-Franche-Comté | O7: 2820623
A8: Allier | B8: 344615 | C8: 342908 | D8: 342729 | E8: 342911 | F8: 343431 | G8: 343062 | J8: -0.001074451637 | N8: Bretagne | O8: 3276543
A9: Alpes-de-Haute-Provence | B9: 139683 | C9: 160149 | D9: 160959 | E9: 161241 | F9: 161916 | G9: 161588 | J9: -0.002025741743 | N9: Centre-Val de Loire | O9: 2577435
A10: Hautes-Alpes | B10: 121631 | C10: 136971 | D10: 138605 | E10: 139554 | F10: 139279 | G10: 139883 | J10: 0.004336619304 | N10: Corse | O10: 324212
A11: Alpes-Maritimes | B11: 1011866 | C11: 1078729 | D11: 1081244 | E11: 1082014 | F11: 1080771 | G11: 1083312 | J11: 0.002351099354 | N11: Grand-Est | O11: 5554645
A12: Ardèche | B12: 286160 | C12: 315090 | D12: 317277 | E12: 318407 | F12: 320379 | G12: 322381 | J12: 0.006248849019 | N12: Hauts-de-France | O12: 6006156
A13: Ardennes | B13: 290124 | C13: 283250 | D13: 283110 | E13: 282778 | F13: 280907 | G13: 279715 | J13: -0.004243397281 | N13: Île-de-France | O13: 12027565
A14: Ariège | B14: 137347 | C14: 152038 | D14: 152286 | E14: 152366 | F14: 152684 | G14: 152574 | J14: -0.0007204422205 | N14: Normandie | O14: 3335645
A15: Aube | B15: 292099 | C15: 303327 | D15: 303997 | E15: 305606 | F15: 306581 | G15: 308094 | J15: 0.004935074254 | N15: Nouvelle-Aquitaine | O15: 5879144
A16: Aude | B16: 309952 | C16: 356467 | D16: 359967 | E16: 362339 | F16: 364877 | G16: 365478 | J16: 0.001647130403 | N16: Occitanie | O16: 5730753
A17: Aveyron | B17: 263924 | C17: 276805 | D17: 275813 | E17: 276229 | F17: 277740 | G17: 278644 | J17: 0.003254842659 | N17: Pays de la Loire | O17: 3690833
A18: Bouches-du-Rhône | B18: 1835407 | C18: 1972018 | D18: 1975896 | E18: 1984784 | F18: 1993177.003 | G18: 2006069 | J18: 0.006468064533 | N18: Provence-Alpes-Côte d'Azur | O18: 4983438
A19: Calvados | B19: 648299 | C19: 683105 | D19: 685262 | E19: 687854 | F19: 689945 | G19: 691670 | J19: 0.002500199291 | O19: =SUM(O6:O18) -> 64027958
A20: Cantal | B20: 150772 | C20: 148162 | D20: 147577 | E20: 147415 | F20: 147035 | G20: 146618 | J20: -0.002836059442
A21: Charente | B21: 339544 | C21: 351577 | D21: 352705 | E21: 353657 | F21: 353482 | G21: 353853 | J21: 0.001049558393
A22: Charente-Maritime | B22: 557389 | C22: 622323 | D22: 625682 | E22: 628733 | F22: 633417 | G22: 637089 | J22: 0.005797128906
A23: Cher | B23: 314388 | C23: 311257 | D23: 311694 | E23: 311897 | F23: 311650 | G23: 310270 | J23: -0.00442804428
A24: Corrèze | B24: 232484 | C24: 243551 | D24: 242454 | E24: 241247 | F24: 240781 | G24: 241340 | J24: 0.002321611755
A25: Côte-d'Or | B25: 507009 | C25: 524358 | D25: 525931 | E25: 527403 | F25: 529761 | G25: 531380 | J25: 0.003056095107
A26: Côtes-d'Armor | B26: 542580 | C26: 591641 | D26: 594375 | E26: 595531 | F26: 597085 | G26: 597397 | J26: 0.000522538667
A27: Creuse | B27: 124482 | C27: 123029 | D27: 122560 | E27: 121517 | F27: 120872 | G27: 120581 | J27: -0.00240750546
A28: Dordogne | B28: 388385 | C28: 414149 | D28: 415168 | E28: 416384 | F28: 416909 | G28: 416350 | J28: -0.001340820179
A29: Doubs | B29: 499162 | C29: 527770 | D29: 529103 | E29: 531062 | F29: 533320 | G29: 534710 | J29: 0.002606315158
A30: Drôme | B30: 437817 | C30: 484715 | D30: 487993 | E30: 491334 | F30: 494712 | G30: 499159 | J30: 0.008989068387
A31: Eure | B31: 541263 | C31: 586543 | D31: 588111 | E31: 591616 | F31: 595043 | G31: 598347 | J31: 0.0055525399
A32: Eure-et-Loir | B32: 407747 | C32: 428933 | D32: 430416 | E32: 432107 | F32: 432967 | G32: 433762 | J32: 0.001836167653
A33: Finistère | B33: 852685 | C33: 897628 | D33: 899870 | E33: 901293 | F33: 903921 | G33: 905855 | J33: 0.002139567506
A34: Corse-du-Sud | B34: 118558 | C34: 143600 | D34: 145846 | E34: 145429 | F34: 149234 | G34: 151652 | J34: 0.016202742
A35: Haute-Corse | B35: 141591 | C35: 166093 | D35: 168640 | E35: 170828 | F35: 170974 | G35: 172560 | J35: 0.009276264227
A36: Gard | B36: 623058 | C36: 709700 | D36: 718357 | E36: 725618 | F36: 733201 | G36: 736029 | J36: 0.00385705966
A37: Haute-Garonne | B37: 1046532 | C37: 1243641 | D37: 1260226 | E37: 1279349 | F37: 1298562 | G37: 1317668 | J37: 0.01471319814
A38: Gers | B38: 172511 | C38: 188159 | D38: 188893 | E38: 189530 | F38: 190276 | G38: 190625 | J38: =(G38-F38)/F38 -> 0.001834177721
A39: Gironde | B39: 1287532 | C39: 1449245 | D39: 1463662 | E39: 1483712 | F39: 1505517 | G39: 1526016 | J39: 0.01361592064
A40: Hérault | B40: 896909 | C40: 1044558 | D40: 1062036 | E40: 1077627 | F40: 1092331 | G40: 1107398 | J40: 0.01379343807
A41: Ille-et-Vilaine | B41: 867818 | C41: 988140 | D41: 996439 | E41: 1007901 | F41: 1019923 | G41: 1032240 | J41: 0.01207640185
A42: Indre | B42: 231061 | C42: 231176 | D42: 230175 | E42: 228692 | F42: 228091 | G42: 226175 | J42: -0.008400156078
A43: Indre-et-Loire | B43: 553747 | C43: 590515 | D43: 593683 | E43: 596937 | F43: 600252 | G43: 603924 | J43: 0.006117430679
A44: Isère | B44: 1093786 | C44: 1206374 | D44: 1215212 | E44: 1224993 | F44: 1235387 | G44: 1243597 | J44: 0.006645690784
A45: Jura | B45: 250925 | C45: 261534 | D45: 261294 | E45: 260932 | F45: 260502 | G45: 260681 | J45: 0.0006871348397
A46: Landes | B46: 327443 | C46: 384320 | D46: 387929 | E46: 392884 | F46: 397226 | G46: 400477 | J46: 0.008184257828
A47: Loir-et-Cher | B47: 314933 | C47: 330079 | D47: 331280 | E47: 331656 | F47: 332001 | G47: 333567 | J47: 0.004716853262
A48: Loire | B48: 728870 | C48: 748947 | D48: 749053 | E48: 753763 | F48: 756715 | G48: 757305 | J48: 0.0007796858791
A49: Haute-Loire | B49: 209047 | C49: 224006 | D49: 224907 | E49: 225686 | F49: 226203 | G49: 226565 | J49: 0.001600332445
A50: Loire-Atlantique | B50: 1134493 | C50: 1282052 | D50: 1296364 | E50: 1313321 | F50: 1328620 | G50: 1346592 | J50: 0.0135268173
A51: Loiret | B51: 618086 | C51: 656105 | D51: 659587 | E51: 662297 | F51: 665587 | G51: 669737 | J51: 0.006235097741
A52: Lot | B52: 160034 | C52: 174578 | D52: 174754 | E52: 174346 | F52: 173758 | G52: 173648 | J52: -0.0006330643769
A53: Lot-et-Garonne | B53: 305396 | C53: 331123 | D53: 330866 | E53: 332119 | F53: 333180 | G53: 333234 | J53: 0.0001620745543
A54: Lozère | B54: 73508 | C54: 77082 | D54: 77156 | E54: 76889 | F54: 76607 | G54: 76360 | J54: -0.003224248437
A55: Maine-et-Loire | B55: 733213 | C55: 784810 | D55: 790343 | E55: 795557 | F55: 800191 | G55: 805888 | J55: 0.007119550207
A56: Manche | B56: 481726 | C56: 498747 | D56: 499531 | E56: 499340 | F56: 499919 | G56: 499958 | J56: 7.801263805e-05
A57: Marne | B57: 565153 | C57: 565307 | D57: 566571 | E57: 568750 | F57: 569999 | G57: 570817 | J57: 0.001435090237
A58: Haute-Marne | B58: 194826 | C58: 184039 | D58: 182375 | E58: 182136 | F58: 181521 | G58: 180673 | J58: -0.004671635789
A59: Mayenne | B59: 285377 | C59: 306337 | D59: 307031 | E59: 307453 | F59: 307500 | G59: 307471 | J59: -9.430894309e-05
A60: Meurthe-et-Moselle | B60: 713555 | C60: 732207 | D60: 733124 | E60: 733266 | F60: 731004 | G60: 732153 | J60: 0.001571810825
A61: Meuse | B61: 192261 | C61: 193923 | D61: 193557 | E61: 192800 | F61: 192094 | G61: 191530 | J61: -0.002936062553
A62: Morbihan | B62: 644095 | C62: 721657 | D62: 727083 | E62: 732372 | F62: 737778 | G62: 741051 | J62: 0.004436293844
A63: Moselle | B63: 1023199 | C63: 1045066 | D63: 1045146 | E63: 1046468 | F63: 1046873 | G63: 1045154 | J63: -0.001642032988
A64: Nièvre | B64: 225191 | C64: 219584 | D64: 218341 | E64: 216786 | F64: 215221 | G64: 213569 | J64: -0.00767583089
A65: Nord | B65: 2554449 | C65: 2576770 | D65: 2579208 | E65: 2587128 | F65: 2595536 | G65: 2603472 | J65: 0.003057557283
A66: Oise | B66: 766313 | C66: 803595 | D66: 805642 | E66: 810300 | F66: 815400 | G66: 818680 | J66: 0.004022565612
A67: Orne | B67: 292411 | C67: 291642 | D67: 290891 | E67: 290015 | F67: 288848 | G67: 287750 | J67: -0.003801307262
A68: Pas-de-Calais | B68: 1441422 | C68: 1461387 | D68: 1462807 | E68: 1463628 | F68: 1465205 | G68: 1472589 | J68: 0.005039567842
A69: Puy-de-Dôme | B69: 604222 | C69: 632311 | D69: 635469 | E69: 638092 | F69: 640999 | G69: 644216 | J69: 0.005018728578
A70: Pyrénées-Atlantiques | B70: 600197 | C70: 653515 | D70: 656608 | E70: 660871 | F70: 664057 | G70: 667249 | J70: =(G70-F70)/F70 -> 0.004806816282
A71: Hautes-Pyrénées | B71: 222673 | C71: 229458 | D71: 229228 | E71: 228854 | F71: 228868 | G71: 228950 | J71: 0.0003582851251
A72: Pyrénées-Orientales | B72: 392930 | C72: 448543 | D72: 452530 | E72: 457793 | F72: 462705 | G72: 466327 | J72: 0.007827881696
A73: Bas-Rhin | B73: 1026023 | C73: 1095905 | D73: 1099269 | E73: 1104667 | F73: 1109460 | G73: 1112815 | J73: 0.003023993655
A74: Haut-Rhin | B74: 707709 | C74: 749782 | D74: 753056 | E74: 755202 | F74: 758723 | G74: 760134 | J74: 0.001859703739
A75: Rhône | B75: 1578423 | C75: 1725177 | D75: 1744236 | E75: 1762866 | F75: 1779845 | G75: 1801885 | J75: 0.01238310078
A76: Haute-Saône | B76: 229786 | C76: 239548 | D76: 239695 | E76: 239750 | F76: 238956 | G76: 238347 | J76: -0.002548586351
A77: Saône-et-Loire | B77: 544891 | C77: 555663 | D77: 555999 | E77: 555039 | F77: 556222 | G77: 555788 | J77: -0.0007802639953
A78: Sarthe | B78: 529895 | C78: 563518 | D78: 565718 | E78: 567382 | F78: 569035 | G78: 568760 | J78: -0.0004832743153
A79: Savoie | B79: 373350 | C79: 414959 | D79: 418949 | E79: 421105 | F79: 423715 | G79: 426924 | J79: 0.007573486896
A80: Haute-Savoie | B80: 631963 | C80: 738088 | D80: 746994 | E80: 756501 | F80: 769677 | G80: 783127 | J80: 0.01747486283
A81: Paris | B81: 2125851 | C81: 2243833 | D81: 2249975 | E81: 2240621 | F81: 2229621 | G81: 2220445 | J81: -0.004115497656
A82: Seine-Maritime | B82: 1239176 | C82: 1250411 | D82: 1251282 | E82: 1253931 | F82: 1254609 | G82: 1257920 | J82: 0.002639069224
A83: Seine-et-Marne | B83: 1193511 | C83: 1324865 | D83: 1338427 | E83: 1353946 | F83: 1365200 | G83: 1377846 | J83: 0.009263111632
A84: Yvelines | B84: 1353957 | C84: 1408765 | D84: 1413635 | E84: 1412356 | F84: 1418484 | G84: 1421670 | J84: 0.002246059878
A85: Deux-Sèvres | B85: 344390 | C85: 369270 | D85: 370939 | E85: 371583 | F85: 371632 | G85: 373553 | J85: 0.005169092005
A86: Somme | B86: 555479 | C86: 570741 | D86: 571211 | E86: 571154 | F86: 571675 | G86: 571632 | J86: -7.521756243e-05
A87: Tarn | B87: 343505 | C87: 375379 | D87: 377675 | E87: 378947 | F87: 381927 | G87: 384474 | J87: 0.006668813674
A88: Tarn-et-Garonne | B88: 206170 | C88: 241698 | D88: 244545 | E88: 246971 | F88: 250342 | G88: 252578 | J88: 0.008931781323
A89: Var | B89: 898001 | C89: 1008183 | D89: 1012735 | E89: 1021669 | F89: 1028583 | G89: 1038212 | J89: 0.009361422462
A90: Vaucluse | B90: 499665 | C90: 543105 | D90: 546630 | E90: 546314 | F90: 549949 | G90: 554374 | J90: 0.008046200648
A91: Vendée | B91: 539806 | C91: 634778 | D91: 641657 | E91: 648901 | F91: 655506 | G91: 662122 | J91: 0.01009296635
A92: Vienne | B92: 399130 | C92: 427193 | D92: 428447 | E92: 430018 | F92: 431248 | G92: 433203 | J92: 0.004533354358
A93: Haute-Vienne | B93: 353826 | C93: 376191 | D93: 376058 | E93: 375869 | F93: 375856 | G93: 376199 | J93: 0.0009125835426
A94: Vosges | B94: 381008 | C94: 379724 | D94: 378830 | E94: 377282 | F94: 375226 | G94: 373560 | J94: -0.004439990832
A95: Yonne | B95: 333316 | C95: 342510 | D95: 342463 | E95: 341902 | F95: 341483 | G95: 341814 | J95: 0.0009693015465
A96: Territoire de Belfort | B96: 137384 | C96: 142911 | D96: 143348 | E96: 143940 | F96: 144318 | G96: 144334 | J96: 0.0001108662814
A97: Essonne | B97: 1134026 | C97: 1215340 | D97: 1225191 | E97: 1237507 | F97: 1253931 | G97: 1268228 | J97: 0.0114017438
A98: Hauts-de-Seine | B98: 1428678 | C98: 1572490 | D98: 1581628 | E98: 1586434 | F98: 1591403 | G98: 1597770 | J98: 0.004000872186
A99: Seine-Saint-Denis | B99: 1382928 | C99: 1522048 | D99: 1529928 | E99: 1538726 | F99: 1552482 | G99: 1571028 | J99: 0.01194603222
A100: Val-de-Marne | B100: 1226961 | C100: 1327732 | D100: 1333702 | E100: 1341831 | F100: 1354005 | G100: 1365039 | J100: 0.008149157499
A101: Val-d'Oise | B101: 1105224 | C101: 1171161 | D101: 1180365 | E101: 1187081 | F101: 1194681 | G101: 1205539 | J101: 0.009088618635
A102: France métropolitaine | B102: 58520688 | C102: 62765235 | D102: =SUM(D6:D101) -> 63070344 | E102: =SUM(E6:E101) -> 63375971 | F102: =SUM(F6:F101) -> 63697865 | G102: =SUM(G6:G101) -> 64027958 | J102: =(G102-F102)/F102 -> 0.005182167369
A103: Guadeloupe | B103: 386256 | C103: 403355 | D103: 404635 | E103: 403314 | F103: 402119 | G103: 400186 | J103: -0.004807034733
A104: Guyane | B104: 156790 | C104: 229040 | D104: 237549 | E104: 239648 | F104: 385551 | G104: 383911 | J104: -0.004253652565
A105: Martinique | B105: 381325 | C105: 394173 | D105: 392291 | E105: 388364 | F105: 244118 | G105: 252338 | J105: 0.03367224047
A106: La Réunion | B106: 706180 | C106: 821136 | D106: 828581 | E106: 833944 | F106: 835103 | G106: 842767 | J106: 0.009177311062
A107: France | B107: 60151239 | C107: 64612939 | D107: =SUM(D102:D106) -> 64933400 | E107: =SUM(E102:E106) -> 65241241 | F107: =SUM(F102:F106) -> 65564756 | G107: =SUM(G102:G106) -> 65907160 | J107: 0.005222378887
A110: source : Insee, Recensement de la population 2014
